{"text_format":"1","workbook":"xlsx","n_sheets":4,"sheets":["GIACENZA","PALLET LIST","LISTA","Foglio3"],"not_rendered":{"charts":0,"images":8,"macros":1,"external_links":0,"defined_names":6,"comments":0,"pivot_tables":1},"unopened":[],"bounds":{"document_bytes":16777216,"sheet_cells":100000,"rows_first":2000,"rows_last":500,"rows_between":2000,"halvings":0,"cell_chars":16384,"cell_head_chars":4096},"cells_cut":0,"cells_raw":0,"read":"whole","date_system":"1900"}

{"sheet":"GIACENZA","index":0,"n_rows":185,"n_cols":12,"rows_kept":185,"cut":false,"hidden":false,"merged":[[1,1,1,2],[1,4,1,5],[184,1,184,2]]}
[]
[null,"GIUBBINI",null,null,null,null,1106]
[null,"ART","DESCRIPTION","SKU","COLOR","TG","Q.TY","GENDER","BARCODE","COUNTRY OF ORIGIN","BRAND","COMPOSITION"]
[null,"JKT","JAKET GIUBBOTTI MOD. MONNINS-W","28VT120000-VT0101","OFF-WHITE",40,16,"WOMAN",8009225641229,"CHINA","VUARNET","outside: 100% polyamide - lining: 58% polyamide 42% polyester"]
[null,"JKT","JAKET GIUBBOTTI MOD. MONNINS-W","28VT120000-VT0101","OFF-WHITE",42,20,"WOMAN",8009225641236,"CHINA","VUARNET","outside: 100% polyamide - lining: 58% polyamide 42% polyester"]
[null,"JKT","JAKET GIUBBOTTI MOD. MONNINS-W","28VT120000-VT0101","OFF-WHITE",44,19,"WOMAN",8009225641243,"CHINA","VUARNET","outside: 100% polyamide - lining: 58% polyamide 42% polyester"]
[null,"JKT","JAKET GIUBBOTTI MOD. MONNINS-W","28VT120000-VT0101","OFF-WHITE",46,5,"WOMAN",8009225641250,"CHINA","VUARNET","outside: 100% polyamide - lining: 58% polyamide 42% polyester"]
[null,"JKT","JAKET GIUBBOTTI MOD. MONNINS-W","28VT120000-VT0101","OFF-WHITE",48,3,"WOMAN",8009225641267,"CHINA","VUARNET","outside: 100% polyamide - lining: 58% polyamide 42% polyester"]
[null,"JKT","JAKET GIUBBOTTI MOD. MONNINS-W","28VT120000-VT0107","GARDENIA",40,9,"WOMAN",8009225639875,"CHINA","VUARNET","outside: 100% polyamide - lining: 58% polyamide 42% polyester"]
[null,"JKT","JAKET GIUBBOTTI MOD. MONNINS-W","28VT120000-VT0107","GARDENIA",42,7,"WOMAN",8009225639882,"CHINA","VUARNET","outside: 100% polyamide - lining: 58% polyamide 42% polyester"]
[null,"JKT","JAKET GIUBBOTTI MOD. MONNINS-W","28VT120000-VT0107","GARDENIA",44,10,"WOMAN",8009225639899,"CHINA","VUARNET","outside: 100% polyamide - lining: 58% polyamide 42% polyester"]
[null,"JKT","JAKET GIUBBOTTI MOD. MONNINS-W","28VT120000-VT0107","GARDENIA",46,4,"WOMAN",8009225639905,"CHINA","VUARNET","outside: 100% polyamide - lining: 58% polyamide 42% polyester"]
[null,"JKT","JAKET GIUBBOTTI MOD. MONNINS-W","28VT120000-VT0427","GLASSE",40,8,"WOMAN",8009225639776,"CHINA","VUARNET","outside: 100% polyamide - lining: 58% polyamide 42% polyester"]
[null,"JKT","JAKET GIUBBOTTI MOD. MONNINS-W","28VT120000-VT0427","GLASSE",42,17,"WOMAN",8009225639783,"CHINA","VUARNET","outside: 100% polyamide - lining: 58% polyamide 42% polyester"]
[null,"JKT","JAKET GIUBBOTTI MOD. MONNINS-W","28VT120000-VT0427","GLASSE",44,12,"WOMAN",8009225639790,"CHINA","VUARNET","outside: 100% polyamide - lining: 58% polyamide 42% polyester"]
[null,"JKT","JAKET GIUBBOTTI MOD. MONNINS-W","28VT120000-VT0427","GLASSE",46,3,"WOMAN",8009225639806,"CHINA","VUARNET","outside: 100% polyamide - lining: 58% polyamide 42% polyester"]
[null,"JKT","JAKET GIUBBOTTI MOD. MONNINS-W","28VT120000-VT0427","GLASSE",48,3,"WOMAN",8009225639813,"CHINA","VUARNET","outside: 100% polyamide - lining: 58% polyamide 42% polyester"]
[null,"JKT","JAKET GIUBBOTTI MOD. MONNINS-W","28VT120000-VT0581","SAIL NAVY",40,7,"WOMAN",8009225639929,"CHINA","VUARNET","outside: 100% polyamide - lining: 58% polyamide 42% polyester"]
[null,"JKT","JAKET GIUBBOTTI MOD. MONNINS-W","28VT120000-VT0581","SAIL NAVY",42,11,"WOMAN",8009225639936,"CHINA","VUARNET","outside: 100% polyamide - lining: 58% polyamide 42% polyester"]
[null,"JKT","JAKET GIUBBOTTI MOD. MONNINS-W","28VT120000-VT0581","SAIL NAVY",44,10,"WOMAN",8009225639943,"CHINA","VUARNET","outside: 100% polyamide - lining: 58% polyamide 42% polyester"]
[null,"JKT","JAKET GIUBBOTTI MOD. MONNINS-W","28VT120000-VT0581","SAIL NAVY",46,5,"WOMAN",8009225639950,"CHINA","VUARNET","outside: 100% polyamide - lining: 58% polyamide 42% polyester"]
[null,"JKT","JAKET GIUBBOTTI MOD. MONNINS-W","28VT120000-VT0581","SAIL NAVY",48,2,"WOMAN",8009225639967,"CHINA","VUARNET","outside: 100% polyamide - lining: 58% polyamide 42% polyester"]
[null,"JKT","JAKET GIUBBOTTI MOD. MONNINS-W","28VT120000-VT0711","CIPRIA",40,11,"WOMAN",8009225639820,"CHINA","VUARNET","outside: 100% polyamide - lining: 58% polyamide 42% polyester"]
[null,"JKT","JAKET GIUBBOTTI MOD. MONNINS-W","28VT120000-VT0711","CIPRIA",42,12,"WOMAN",8009225639837,"CHINA","VUARNET","outside: 100% polyamide - lining: 58% polyamide 42% polyester"]
[null,"JKT","JAKET GIUBBOTTI MOD. MONNINS-W","28VT120000-VT0711","CIPRIA",44,4,"WOMAN",8009225639844,"CHINA","VUARNET","outside: 100% polyamide - lining: 58% polyamide 42% polyester"]
[null,"JKT","JAKET GIUBBOTTI MOD. MONNINS-W","28VT120000-VT0711","CIPRIA",46,6,"WOMAN",8009225639851,"CHINA","VUARNET","outside: 100% polyamide - lining: 58% polyamide 42% polyester"]
[null,"JKT","JAKET GIUBBOTTI MOD. MONNINS-W","28VT120000-VT0711","CIPRIA",48,2,"WOMAN",8009225639868,"CHINA","VUARNET","outside: 100% polyamide - lining: 58% polyamide 42% polyester"]
[null,"JKT","JAKET GIUBBOTTI MOD. MONNINS-W","28VT120000-VT0999","BLACK",40,4,"WOMAN",8009225639974,"CHINA","VUARNET","outside: 100% polyamide - lining: 58% polyamide 42% polyester"]
[null,"JKT","JAKET GIUBBOTTI MOD. MONNINS-W","28VT120000-VT0999","BLACK",42,10,"WOMAN",8009225639981,"CHINA","VUARNET","outside: 100% polyamide - lining: 58% polyamide 42% polyester"]
[null,"JKT","JAKET GIUBBOTTI MOD. MONNINS-W","28VT120000-VT0999","BLACK",44,12,"WOMAN",8009225639998,"CHINA","VUARNET","outside: 100% polyamide - lining: 58% polyamide 42% polyester"]
[null,"JKT","JAKET GIUBBOTTI MOD. MONNINS-W","28VT120000-VT0999","BLACK",46,6,"WOMAN",8009225640000,"CHINA","VUARNET","outside: 100% polyamide - lining: 58% polyamide 42% polyester"]
[null,"JKT","JAKET GIUBBOTTI MOD. MONNINS-W","28VT120000-VT0999","BLACK",48,7,"WOMAN",8009225640017,"CHINA","VUARNET","outside: 100% polyamide - lining: 58% polyamide 42% polyester"]
[null,"JKT","JAKET GIUBBOTTI MOD. VILLETTE-W","28VT120100-VT0101","OFF-WHITE",40,7,"WOMAN",8009225641274,"CHINA","VUARNET","outside: 100% polyamide - lining: 58% polyamide 42% polyester"]
[null,"JKT","JAKET GIUBBOTTI MOD. VILLETTE-W","28VT120100-VT0101","OFF-WHITE",42,7,"WOMAN",8009225641281,"CHINA","VUARNET","outside: 100% polyamide - lining: 58% polyamide 42% polyester"]
[null,"JKT","JAKET GIUBBOTTI MOD. VILLETTE-W","28VT120100-VT0101","OFF-WHITE",44,8,"WOMAN",8009225641298,"CHINA","VUARNET","outside: 100% polyamide - lining: 58% polyamide 42% polyester"]
[null,"JKT","JAKET GIUBBOTTI MOD. VILLETTE-W","28VT120100-VT0101","OFF-WHITE",46,6,"WOMAN",8009225641304,"CHINA","VUARNET","outside: 100% polyamide - lining: 58% polyamide 42% polyester"]
[null,"JKT","JAKET GIUBBOTTI MOD. VILLETTE-W","28VT120100-VT0101","OFF-WHITE",48,2,"WOMAN",8009225641311,"CHINA","VUARNET","outside: 100% polyamide - lining: 58% polyamide 42% polyester"]
[null,"JKT","JAKET GIUBBOTTI MOD. VILLETTE-W","28VT120100-VT0101","OFF-WHITE",50,2,"WOMAN",8009225641328,"CHINA","VUARNET","outside: 100% polyamide - lining: 58% polyamide 42% polyester"]
[null,"JKT","JAKET GIUBBOTTI MOD. VILLETTE-W","28VT120100-VT0107","GARDENIA",40,7,"WOMAN",8009225640390,"CHINA","VUARNET","outside: 100% polyamide - lining: 58% polyamide 42% polyester"]
[null,"JKT","JAKET GIUBBOTTI MOD. VILLETTE-W","28VT120100-VT0107","GARDENIA",42,8,"WOMAN",8009225640406,"CHINA","VUARNET","outside: 100% polyamide - lining: 58% polyamide 42% polyester"]
[null,"JKT","JAKET GIUBBOTTI MOD. VILLETTE-W","28VT120100-VT0107","GARDENIA",44,10,"WOMAN",8009225640413,"CHINA","VUARNET","outside: 100% polyamide - lining: 58% polyamide 42% polyester"]
[null,"JKT","JAKET GIUBBOTTI MOD. VILLETTE-W","28VT120100-VT0107","GARDENIA",46,8,"WOMAN",8009225640420,"CHINA","VUARNET","outside: 100% polyamide - lining: 58% polyamide 42% polyester"]
[null,"JKT","JAKET GIUBBOTTI MOD. VILLETTE-W","28VT120100-VT0107","GARDENIA",48,5,"WOMAN",8009225640437,"CHINA","VUARNET","outside: 100% polyamide - lining: 58% polyamide 42% polyester"]
[null,"JKT","JAKET GIUBBOTTI MOD. VILLETTE-W","28VT120100-VT0427","GLASSE",40,6,"WOMAN",8009225640284,"CHINA","VUARNET","outside: 100% polyamide - lining: 58% polyamide 42% polyester"]
[null,"JKT","JAKET GIUBBOTTI MOD. VILLETTE-W","28VT120100-VT0427","GLASSE",42,4,"WOMAN",8009225640291,"CHINA","VUARNET","outside: 100% polyamide - lining: 58% polyamide 42% polyester"]
[null,"JKT","JAKET GIUBBOTTI MOD. VILLETTE-W","28VT120100-VT0427","GLASSE",44,9,"WOMAN",8009225640307,"CHINA","VUARNET","outside: 100% polyamide - lining: 58% polyamide 42% polyester"]
[null,"JKT","JAKET GIUBBOTTI MOD. VILLETTE-W","28VT120100-VT0427","GLASSE",46,3,"WOMAN",8009225640314,"CHINA","VUARNET","outside: 100% polyamide - lining: 58% polyamide 42% polyester"]
[null,"JKT","JAKET GIUBBOTTI MOD. VILLETTE-W","28VT120100-VT0427","GLASSE",48,2,"WOMAN",8009225640321,"CHINA","VUARNET","outside: 100% polyamide - lining: 58% polyamide 42% polyester"]
[null,"JKT","JAKET GIUBBOTTI MOD. VILLETTE-W","28VT120100-VT0427","GLASSE",50,2,"WOMAN",8009225639141,"CHINA","VUARNET","outside: 100% polyamide - lining: 58% polyamide 42% polyester"]
[null,"JKT","JAKET GIUBBOTTI MOD. VILLETTE-W","28VT120100-VT0581","SAIL NAVY",40,null,"WOMAN",null,"CHINA","VUARNET","outside: 100% polyamide - lining: 58% polyamide 42% polyester"]
[null,"JKT","JAKET GIUBBOTTI MOD. VILLETTE-W","28VT120100-VT0581","SAIL NAVY",42,null,"WOMAN",null,"CHINA","VUARNET","outside: 100% polyamide - lining: 58% polyamide 42% polyester"]
[null,"JKT","JAKET GIUBBOTTI MOD. VILLETTE-W","28VT120100-VT0581","SAIL NAVY",44,3,"WOMAN",8009225640468,"CHINA","VUARNET","outside: 100% polyamide - lining: 58% polyamide 42% polyester"]
[null,"JKT","JAKET GIUBBOTTI MOD. VILLETTE-W","28VT120100-VT0581","SAIL NAVY",46,3,"WOMAN",8009225640475,"CHINA","VUARNET","outside: 100% polyamide - lining: 58% polyamide 42% polyester"]
[null,"JKT","JAKET GIUBBOTTI MOD. VILLETTE-W","28VT120100-VT0581","SAIL NAVY",48,2,"WOMAN",8009225640482,"CHINA","VUARNET","outside: 100% polyamide - lining: 58% polyamide 42% polyester"]
[null,"JKT","JAKET GIUBBOTTI MOD. VILLETTE-W","28VT120100-VT0581","SAIL NAVY",50,5,"WOMAN",8009225640499,"CHINA","VUARNET","outside: 100% polyamide - lining: 58% polyamide 42% polyester"]
[null,"JKT","JAKET GIUBBOTTI MOD. VILLETTE-W","28VT120100-VT0711","CIPRIA",40,7,"WOMAN",8009225640345,"CHINA","VUARNET","outside: 100% polyamide - lining: 58% polyamide 42% polyester"]
[null,"JKT","JAKET GIUBBOTTI MOD. VILLETTE-W","28VT120100-VT0711","CIPRIA",42,10,"WOMAN",8009225640352,"CHINA","VUARNET","outside: 100% polyamide - lining: 58% polyamide 42% polyester"]
[null,"JKT","JAKET GIUBBOTTI MOD. VILLETTE-W","28VT120100-VT0711","CIPRIA",44,9,"WOMAN",8009225640369,"CHINA","VUARNET","outside: 100% polyamide - lining: 58% polyamide 42% polyester"]
[null,"JKT","JAKET GIUBBOTTI MOD. VILLETTE-W","28VT120100-VT0711","CIPRIA",46,7,"WOMAN",8009225640376,"CHINA","VUARNET","outside: 100% polyamide - lining: 58% polyamide 42% polyester"]
[null,"JKT","JAKET GIUBBOTTI MOD. VILLETTE-W","28VT120100-VT0711","CIPRIA",48,2,"WOMAN",8009225640383,"CHINA","VUARNET","outside: 100% polyamide - lining: 58% polyamide 42% polyester"]
[null,"JKT","JAKET GIUBBOTTI MOD. VILLETTE-W","28VT120100-VT0999","BLACK",40,3,"WOMAN",8009225640505,"CHINA","VUARNET","outside: 100% polyamide - lining: 58% polyamide 42% polyester"]
[null,"JKT","JAKET GIUBBOTTI MOD. VILLETTE-W","28VT120100-VT0999","BLACK",42,2,"WOMAN",8009225640512,"CHINA","VUARNET","outside: 100% polyamide - lining: 58% polyamide 42% polyester"]
[null,"JKT","JAKET GIUBBOTTI MOD. VILLETTE-W","28VT120100-VT0999","BLACK",44,3,"WOMAN",8009225640529,"CHINA","VUARNET","outside: 100% polyamide - lining: 58% polyamide 42% polyester"]
[null,"JKT","JAKET GIUBBOTTI MOD. VILLETTE-W","28VT120100-VT0999","BLACK",46,3,"WOMAN",8009225640536,"CHINA","VUARNET","outside: 100% polyamide - lining: 58% polyamide 42% polyester"]
[null,"JKT","JAKET GIUBBOTTI MOD. VILLETTE-W","28VT120100-VT0999","BLACK",48,3,"WOMAN",8009225640543,"CHINA","VUARNET","outside: 100% polyamide - lining: 58% polyamide 42% polyester"]
[null,"JKT","JAKET GIUBBOTTI MOD. VILLETTE-W","28VT120100-VT0999","BLACK",50,2,"WOMAN",8009225640550,"CHINA","VUARNET","outside: 100% polyamide - lining: 58% polyamide 42% polyester"]
[null,"JKT","JAKET GIUBBOTTI MOD. ANNECY-W","28VT120200-VT0101","OFF-WHITE",40,8,"WOMAN",8009225641113,"CHINA","VUARNET","outside: 100% polyamide - lining: 58% polyamide 42% polyester"]
[null,"JKT","JAKET GIUBBOTTI MOD. ANNECY-W","28VT120200-VT0101","OFF-WHITE",42,8,"WOMAN",8009225641120,"CHINA","VUARNET","outside: 100% polyamide - lining: 58% polyamide 42% polyester"]
[null,"JKT","JAKET GIUBBOTTI MOD. ANNECY-W","28VT120200-VT0101","OFF-WHITE",44,6,"WOMAN",8009225641137,"CHINA","VUARNET","outside: 100% polyamide - lining: 58% polyamide 42% polyester"]
[null,"JKT","JAKET GIUBBOTTI MOD. ANNECY-W","28VT120200-VT0101","OFF-WHITE",46,4,"WOMAN",8009225641144,"CHINA","VUARNET","outside: 100% polyamide - lining: 58% polyamide 42% polyester"]
[null,"JKT","JAKET GIUBBOTTI MOD. ANNECY-W","28VT120200-VT0101","OFF-WHITE",48,4,"WOMAN",8009225641151,"CHINA","VUARNET","outside: 100% polyamide - lining: 58% polyamide 42% polyester"]
[null,"JKT","JAKET GIUBBOTTI MOD. ANNECY-W","28VT120200-VT0101","OFF-WHITE",50,3,"WOMAN",8009225641168,"CHINA","VUARNET","outside: 100% polyamide - lining: 58% polyamide 42% polyester"]
[null,"JKT","JAKET GIUBBOTTI MOD. ANNECY-W","28VT120200-VT0107","GARDENIA",40,10,"WOMAN",8009225639202,"CHINA","VUARNET","outside: 100% polyamide - lining: 58% polyamide 42% polyester"]
[null,"JKT","JAKET GIUBBOTTI MOD. ANNECY-W","28VT120200-VT0107","GARDENIA",42,9,"WOMAN",8009225639219,"CHINA","VUARNET","outside: 100% polyamide - lining: 58% polyamide 42% polyester"]
[null,"JKT","JAKET GIUBBOTTI MOD. ANNECY-W","28VT120200-VT0107","GARDENIA",44,6,"WOMAN",8009225639226,"CHINA","VUARNET","outside: 100% polyamide - lining: 58% polyamide 42% polyester"]
[null,"JKT","JAKET GIUBBOTTI MOD. ANNECY-W","28VT120200-VT0107","GARDENIA",46,5,"WOMAN",8009225639233,"CHINA","VUARNET","outside: 100% polyamide - lining: 58% polyamide 42% polyester"]
[null,"JKT","JAKET GIUBBOTTI MOD. ANNECY-W","28VT120200-VT0107","GARDENIA",48,6,"WOMAN",8009225639240,"CHINA","VUARNET","outside: 100% polyamide - lining: 58% polyamide 42% polyester"]
[null,"JKT","JAKET GIUBBOTTI MOD. ANNECY-W","28VT120200-VT0427","GLASSE",40,8,"WOMAN",8009225639097,"CHINA","VUARNET","outside: 100% polyamide - lining: 58% polyamide 42% polyester"]
[null,"JKT","JAKET GIUBBOTTI MOD. ANNECY-W","28VT120200-VT0427","GLASSE",42,11,"WOMAN",8009225639103,"CHINA","VUARNET","outside: 100% polyamide - lining: 58% polyamide 42% polyester"]
[null,"JKT","JAKET GIUBBOTTI MOD. ANNECY-W","28VT120200-VT0427","GLASSE",44,7,"WOMAN",8009225639110,"CHINA","VUARNET","outside: 100% polyamide - lining: 58% polyamide 42% polyester"]
[null,"JKT","JAKET GIUBBOTTI MOD. ANNECY-W","28VT120200-VT0427","GLASSE",46,6,"WOMAN",8009225639127,"CHINA","VUARNET","outside: 100% polyamide - lining: 58% polyamide 42% polyester"]
[null,"JKT","JAKET GIUBBOTTI MOD. ANNECY-W","28VT120200-VT0427","GLASSE",48,4,"WOMAN",8009225639134,"CHINA","VUARNET","outside: 100% polyamide - lining: 58% polyamide 42% polyester"]
[null,"JKT","JAKET GIUBBOTTI MOD. ANNECY-W","28VT120200-VT0427","GLASSE",50,3,"WOMAN",8009225639141,"CHINA","VUARNET","outside: 100% polyamide - lining: 58% polyamide 42% polyester"]
[null,"JKT","JAKET GIUBBOTTI MOD. ANNECY-W","28VT120200-VT0581","SAIL NAVY",40,5,"WOMAN",8009225639264,"CHINA","VUARNET","outside: 100% polyamide - lining: 58% polyamide 42% polyester"]
[null,"JKT","JAKET GIUBBOTTI MOD. ANNECY-W","28VT120200-VT0581","SAIL NAVY",42,3,"WOMAN",8009225639271,"CHINA","VUARNET","outside: 100% polyamide - lining: 58% polyamide 42% polyester"]
[null,"JKT","JAKET GIUBBOTTI MOD. ANNECY-W","28VT120200-VT0581","SAIL NAVY",44,1,"WOMAN",8009225639288,"CHINA","VUARNET","outside: 100% polyamide - lining: 58% polyamide 42% polyester"]
[null,"JKT","JAKET GIUBBOTTI MOD. ANNECY-W","28VT120200-VT0581","SAIL NAVY",46,null,"WOMAN",null,"CHINA","VUARNET","outside: 100% polyamide - lining: 58% polyamide 42% polyester"]
[null,"JKT","JAKET GIUBBOTTI MOD. ANNECY-W","28VT120200-VT0581","SAIL NAVY",48,3,"WOMAN",8009225639301,"CHINA","VUARNET","outside: 100% polyamide - lining: 58% polyamide 42% polyester"]
[null,"JKT","JAKET GIUBBOTTI MOD. ANNECY-W","28VT120200-VT0581","SAIL NAVY",50,3,"WOMAN",8009225639318,"CHINA","VUARNET","outside: 100% polyamide - lining: 58% polyamide 42% polyester"]
[null,"JKT","JAKET GIUBBOTTI MOD. ANNECY-W","28VT120200-VT0711","CIPRIA",40,9,"WOMAN",8009225639158,"CHINA","VUARNET","outside: 100% polyamide - lining: 58% polyamide 42% polyester"]
[null,"JKT","JAKET GIUBBOTTI MOD. ANNECY-W","28VT120200-VT0711","CIPRIA",42,7,"WOMAN",8009225639165,"CHINA","VUARNET","outside: 100% polyamide - lining: 58% polyamide 42% polyester"]
[null,"JKT","JAKET GIUBBOTTI MOD. ANNECY-W","28VT120200-VT0711","CIPRIA",44,7,"WOMAN",8009225639172,"CHINA","VUARNET","outside: 100% polyamide - lining: 58% polyamide 42% polyester"]
[null,"JKT","JAKET GIUBBOTTI MOD. ANNECY-W","28VT120200-VT0711","CIPRIA",46,5,"WOMAN",8009225639189,"CHINA","VUARNET","outside: 100% polyamide - lining: 58% polyamide 42% polyester"]
[null,"JKT","JAKET GIUBBOTTI MOD. ANNECY-W","28VT120200-VT0711","CIPRIA",48,5,"WOMAN",8009225639196,"CHINA","VUARNET","outside: 100% polyamide - lining: 58% polyamide 42% polyester"]
[null,"JKT","JAKET GIUBBOTTI MOD. ANNECY-W","28VT120200-VT0999","BLACK",40,null,"WOMAN",null,"CHINA","VUARNET","outside: 100% polyamide - lining: 58% polyamide 42% polyester"]
[null,"JKT","JAKET GIUBBOTTI MOD. ANNECY-W","28VT120200-VT0999","BLACK",42,1,"WOMAN",8009225639332,"CHINA","VUARNET","outside: 100% polyamide - lining: 58% polyamide 42% polyester"]
[null,"JKT","JAKET GIUBBOTTI MOD. ANNECY-W","28VT120200-VT0999","BLACK",44,2,"WOMAN",8009225639349,"CHINA","VUARNET","outside: 100% polyamide - lining: 58% polyamide 42% polyester"]
[null,"JKT","JAKET GIUBBOTTI MOD. ANNECY-W","28VT120200-VT0999","BLACK",46,null,"WOMAN",null,"CHINA","VUARNET","outside: 100% polyamide - lining: 58% polyamide 42% polyester"]
[null,"JKT","JAKET GIUBBOTTI MOD. ANNECY-W","28VT120200-VT0999","BLACK",48,2,"WOMAN",8009225639363,"CHINA","VUARNET","outside: 100% polyamide - lining: 58% polyamide 42% polyester"]
[null,"JKT","JAKET GIUBBOTTI MOD. CUSSET-W","28VT120300-VT0107","GARDENIA",40,14,"WOMAN",8009225640604,"CHINA","VUARNET","outside: 100% polyamide - lining: 58% polyamide 42% polyester"]
[null,"JKT","JAKET GIUBBOTTI MOD. CUSSET-W","28VT120300-VT0107","GARDENIA",42,14,"WOMAN",8009225640611,"CHINA","VUARNET","outside: 100% polyamide - lining: 58% polyamide 42% polyester"]
[null,"JKT","JAKET GIUBBOTTI MOD. CUSSET-W","28VT120300-VT0107","GARDENIA",44,10,"WOMAN",8009225640628,"CHINA","VUARNET","outside: 100% polyamide - lining: 58% polyamide 42% polyester"]
[null,"JKT","JAKET GIUBBOTTI MOD. CUSSET-W","28VT120300-VT0107","GARDENIA",46,3,"WOMAN",8009225640635,"CHINA","VUARNET","outside: 100% polyamide - lining: 58% polyamide 42% polyester"]
[null,"JKT","JAKET GIUBBOTTI MOD. CUSSET-W","28VT120300-VT0427","GLASSE",40,9,"WOMAN",8009225640567,"CHINA","VUARNET","outside: 100% polyamide - lining: 58% polyamide 42% polyester"]
[null,"JKT","JAKET GIUBBOTTI MOD. CUSSET-W","28VT120300-VT0427","GLASSE",42,3,"WOMAN",8009225640574,"CHINA","VUARNET","outside: 100% polyamide - lining: 58% polyamide 42% polyester"]
[null,"JKT","JAKET GIUBBOTTI MOD. CUSSET-W","28VT120300-VT0427","GLASSE",44,7,"WOMAN",8009225640581,"CHINA","VUARNET","outside: 100% polyamide - lining: 58% polyamide 42% polyester"]
[null,"JKT","JAKET GIUBBOTTI MOD. CUSSET-W","28VT120300-VT0427","GLASSE",46,4,"WOMAN",8009225640598,"CHINA","VUARNET","outside: 100% polyamide - lining: 58% polyamide 42% polyester"]
[null,"JKT","JAKET GIUBBOTTI MOD. CUSSET-W","28VT120300-VT0581","SAIL NAVY",40,9,"WOMAN",8009225640642,"CHINA","VUARNET","outside: 100% polyamide - lining: 58% polyamide 42% polyester"]
[null,"JKT","JAKET GIUBBOTTI MOD. CUSSET-W","28VT120300-VT0581","SAIL NAVY",42,10,"WOMAN",8009225640659,"CHINA","VUARNET","outside: 100% polyamide - lining: 58% polyamide 42% polyester"]
[null,"JKT","JAKET GIUBBOTTI MOD. CUSSET-W","28VT120300-VT0581","SAIL NAVY",44,11,"WOMAN",8009225640666,"CHINA","VUARNET","outside: 100% polyamide - lining: 58% polyamide 42% polyester"]
[null,"JKT","JAKET GIUBBOTTI MOD. CUSSET-W","28VT120300-VT0581","SAIL NAVY",46,8,"WOMAN",8009225640673,"CHINA","VUARNET","outside: 100% polyamide - lining: 58% polyamide 42% polyester"]
[null,"JKT","JAKET GIUBBOTTI MOD. CUSSET-W","28VT120300-VT0999","BLACK",40,4,"WOMAN",8009225640680,"CHINA","VUARNET","outside: 100% polyamide - lining: 58% polyamide 42% polyester"]
[null,"JKT","JAKET GIUBBOTTI MOD. CUSSET-W","28VT120300-VT0999","BLACK",42,6,"WOMAN",8009225640697,"CHINA","VUARNET","outside: 100% polyamide - lining: 58% polyamide 42% polyester"]
[null,"JKT","JAKET GIUBBOTTI MOD. CUSSET-W","28VT120300-VT0999","BLACK",44,6,"WOMAN",8009225640703,"CHINA","VUARNET","outside: 100% polyamide - lining: 58% polyamide 42% polyester"]
[null,"JKT","JAKET GIUBBOTTI MOD. CUSSET-W","28VT120300-VT0999","BLACK",46,5,"WOMAN",8009225640710,"CHINA","VUARNET","outside: 100% polyamide - lining: 58% polyamide 42% polyester"]
[null,"JKT","JAKET GIUBBOTTI MOD. VICHY-W","28VT120500-VT0101","OFF-WHITE",40,12,"WOMAN",8009225641175,"CHINA","VUARNET","outside: 100% polyamide - lining: 58% polyamide 42% polyester"]
[null,"JKT","JAKET GIUBBOTTI MOD. VICHY-W","28VT120500-VT0101","OFF-WHITE",42,8,"WOMAN",8009225641182,"CHINA","VUARNET","outside: 100% polyamide - lining: 58% polyamide 42% polyester"]
[null,"JKT","JAKET GIUBBOTTI MOD. VICHY-W","28VT120500-VT0101","OFF-WHITE",44,11,"WOMAN",8009225641199,"CHINA","VUARNET","outside: 100% polyamide - lining: 58% polyamide 42% polyester"]
[null,"JKT","JAKET GIUBBOTTI MOD. VICHY-W","28VT120500-VT0101","OFF-WHITE",46,7,"WOMAN",8009225641205,"CHINA","VUARNET","outside: 100% polyamide - lining: 58% polyamide 42% polyester"]
[null,"JKT","JAKET GIUBBOTTI MOD. VICHY-W","28VT120500-VT0101","OFF-WHITE",48,2,"WOMAN",8009225641212,"CHINA","VUARNET","outside: 100% polyamide - lining: 58% polyamide 42% polyester"]
[null,"JKT","JAKET GIUBBOTTI MOD. VICHY-W","28VT120500-VT0107","GARDENIA",40,8,"WOMAN",8009225639547,"CHINA","VUARNET","outside: 100% polyamide - lining: 58% polyamide 42% polyester"]
[null,"JKT","JAKET GIUBBOTTI MOD. VICHY-W","28VT120500-VT0107","GARDENIA",42,10,"WOMAN",8009225639554,"CHINA","VUARNET","outside: 100% polyamide - lining: 58% polyamide 42% polyester"]
[null,"JKT","JAKET GIUBBOTTI MOD. VICHY-W","28VT120500-VT0107","GARDENIA",44,8,"WOMAN",8009225639561,"CHINA","VUARNET","outside: 100% polyamide - lining: 58% polyamide 42% polyester"]
[null,"JKT","JAKET GIUBBOTTI MOD. VICHY-W","28VT120500-VT0107","GARDENIA",46,3,"WOMAN",8009225639578,"CHINA","VUARNET","outside: 100% polyamide - lining: 58% polyamide 42% polyester"]
[null,"JKT","JAKET GIUBBOTTI MOD. VICHY-W","28VT120500-VT0107","GARDENIA",48,1,"WOMAN",8009225639585,"CHINA","VUARNET","outside: 100% polyamide - lining: 58% polyamide 42% polyester"]
[null,"JKT","JAKET GIUBBOTTI MOD. VICHY-W","28VT120500-VT0107","GARDENIA",50,3,"WOMAN",8009225639592,"CHINA","VUARNET","outside: 100% polyamide - lining: 58% polyamide 42% polyester"]
[null,"JKT","JAKET GIUBBOTTI MOD. VICHY-W","28VT120500-VT0427","GLASSE",40,8,"WOMAN",8009225639431,"CHINA","VUARNET","outside: 100% polyamide - lining: 58% polyamide 42% polyester"]
[null,"JKT","JAKET GIUBBOTTI MOD. VICHY-W","28VT120500-VT0427","GLASSE",42,7,"WOMAN",8009225639448,"CHINA","VUARNET","outside: 100% polyamide - lining: 58% polyamide 42% polyester"]
[null,"JKT","JAKET GIUBBOTTI MOD. VICHY-W","28VT120500-VT0427","GLASSE",44,8,"WOMAN",8009225639455,"CHINA","VUARNET","outside: 100% polyamide - lining: 58% polyamide 42% polyester"]
[null,"JKT","JAKET GIUBBOTTI MOD. VICHY-W","28VT120500-VT0427","GLASSE",46,7,"WOMAN",8009225639462,"CHINA","VUARNET","outside: 100% polyamide - lining: 58% polyamide 42% polyester"]
[null,"JKT","JAKET GIUBBOTTI MOD. VICHY-W","28VT120500-VT0427","GLASSE",48,3,"WOMAN",8009225639479,"CHINA","VUARNET","outside: 100% polyamide - lining: 58% polyamide 42% polyester"]
[null,"JKT","JAKET GIUBBOTTI MOD. VICHY-W","28VT120500-VT0427","GLASSE",50,5,"WOMAN",8009225639486,"CHINA","VUARNET","outside: 100% polyamide - lining: 58% polyamide 42% polyester"]
[null,"JKT","JAKET GIUBBOTTI MOD. VICHY-W","28VT120500-VT0581","SAIL NAVY",40,7,"WOMAN",8009225639608,"CHINA","VUARNET","outside: 100% polyamide - lining: 58% polyamide 42% polyester"]
[null,"JKT","JAKET GIUBBOTTI MOD. VICHY-W","28VT120500-VT0581","SAIL NAVY",42,7,"WOMAN",8009225639615,"CHINA","VUARNET","outside: 100% polyamide - lining: 58% polyamide 42% polyester"]
[null,"JKT","JAKET GIUBBOTTI MOD. VICHY-W","28VT120500-VT0581","SAIL NAVY",44,10,"WOMAN",8009225639622,"CHINA","VUARNET","outside: 100% polyamide - lining: 58% polyamide 42% polyester"]
[null,"JKT","JAKET GIUBBOTTI MOD. VICHY-W","28VT120500-VT0581","SAIL NAVY",46,5,"WOMAN",8009225639639,"CHINA","VUARNET","outside: 100% polyamide - lining: 58% polyamide 42% polyester"]
[null,"JKT","JAKET GIUBBOTTI MOD. VICHY-W","28VT120500-VT0581","SAIL NAVY",48,3,"WOMAN",8009225639646,"CHINA","VUARNET","outside: 100% polyamide - lining: 58% polyamide 42% polyester"]
[null,"JKT","JAKET GIUBBOTTI MOD. VICHY-W","28VT120500-VT0581","SAIL NAVY",50,3,"WOMAN",8009225639653,"CHINA","VUARNET","outside: 100% polyamide - lining: 58% polyamide 42% polyester"]
[null,"JKT","JAKET GIUBBOTTI MOD. VICHY-W","28VT120500-VT0711","CIPRIA",40,10,"WOMAN",8009225639493,"CHINA","VUARNET","outside: 100% polyamide - lining: 58% polyamide 42% polyester"]
[null,"JKT","JAKET GIUBBOTTI MOD. VICHY-W","28VT120500-VT0711","CIPRIA",42,13,"WOMAN",8009225639509,"CHINA","VUARNET","outside: 100% polyamide - lining: 58% polyamide 42% polyester"]
[null,"JKT","JAKET GIUBBOTTI MOD. VICHY-W","28VT120500-VT0711","CIPRIA",44,2,"WOMAN",8009225639516,"CHINA","VUARNET","outside: 100% polyamide - lining: 58% polyamide 42% polyester"]
[null,"JKT","JAKET GIUBBOTTI MOD. VICHY-W","28VT120500-VT0711","CIPRIA",46,7,"WOMAN",8009225639523,"CHINA","VUARNET","outside: 100% polyamide - lining: 58% polyamide 42% polyester"]
[null,"JKT","JAKET GIUBBOTTI MOD. VICHY-W","28VT120500-VT0711","CIPRIA",48,3,"WOMAN",8009225639530,"CHINA","VUARNET","outside: 100% polyamide - lining: 58% polyamide 42% polyester"]
[null,"JKT","JAKET GIUBBOTTI MOD. VICHY-W","28VT120500-VT0999","BLACK",40,7,"WOMAN",8009225639660,"CHINA","VUARNET","outside: 100% polyamide - lining: 58% polyamide 42% polyester"]
[null,"JKT","JAKET GIUBBOTTI MOD. VICHY-W","28VT120500-VT0999","BLACK",42,6,"WOMAN",8009225639677,"CHINA","VUARNET","outside: 100% polyamide - lining: 58% polyamide 42% polyester"]
[null,"JKT","JAKET GIUBBOTTI MOD. VICHY-W","28VT120500-VT0999","BLACK",44,9,"WOMAN",8009225639684,"CHINA","VUARNET","outside: 100% polyamide - lining: 58% polyamide 42% polyester"]
[null,"JKT","JAKET GIUBBOTTI MOD. VICHY-W","28VT120500-VT0999","BLACK",46,4,"WOMAN",8009225639691,"CHINA","VUARNET","outside: 100% polyamide - lining: 58% polyamide 42% polyester"]
[null,"JKT","JAKET GIUBBOTTI MOD. VICHY-W","28VT120500-VT0999","BLACK",48,3,"WOMAN",8009225639707,"CHINA","VUARNET","outside: 100% polyamide - lining: 58% polyamide 42% polyester"]
[null,"JKT","JAKET GIUBBOTTI MOD. VICHY-W","28VT120500-VT0999","BLACK",50,4,"WOMAN",8009225639714,"CHINA","VUARNET","outside: 100% polyamide - lining: 58% polyamide 42% polyester"]
[null,"JKT","JAKET GIUBBOTTI MOD. YENNE-W","28VT120600-VT0107","GARDENIA",40,11,"WOMAN",8009225640079,"CHINA","VUARNET","outside: 100% polyamide - lining: 58% polyamide 42% polyester"]
[null,"JKT","JAKET GIUBBOTTI MOD. YENNE-W","28VT120600-VT0107","GARDENIA",42,8,"WOMAN",8009225640086,"CHINA","VUARNET","outside: 100% polyamide - lining: 58% polyamide 42% polyester"]
[null,"JKT","JAKET GIUBBOTTI MOD. YENNE-W","28VT120600-VT0107","GARDENIA",44,8,"WOMAN",8009225640093,"CHINA","VUARNET","outside: 100% polyamide - lining: 58% polyamide 42% polyester"]
[null,"JKT","JAKET GIUBBOTTI MOD. YENNE-W","28VT120600-VT0107","GARDENIA",46,1,"WOMAN",8009225640109,"CHINA","VUARNET","outside: 100% polyamide - lining: 58% polyamide 42% polyester"]
[null,"JKT","JAKET GIUBBOTTI MOD. YENNE-W","28VT120600-VT0107","GARDENIA",48,1,"WOMAN",8009225640116,"CHINA","VUARNET","outside: 100% polyamide - lining: 58% polyamide 42% polyester"]
[null,"JKT","JAKET GIUBBOTTI MOD. YENNE-W","28VT120600-VT0427","GLASSE",40,8,"WOMAN",8009225640024,"CHINA","VUARNET","outside: 100% polyamide - lining: 58% polyamide 42% polyester"]
[null,"JKT","JAKET GIUBBOTTI MOD. YENNE-W","28VT120600-VT0427","GLASSE",42,5,"WOMAN",8009225640031,"CHINA","VUARNET","outside: 100% polyamide - lining: 58% polyamide 42% polyester"]
[null,"JKT","JAKET GIUBBOTTI MOD. YENNE-W","28VT120600-VT0427","GLASSE",44,3,"WOMAN",8009225640048,"CHINA","VUARNET","outside: 100% polyamide - lining: 58% polyamide 42% polyester"]
[null,"JKT","JAKET GIUBBOTTI MOD. YENNE-W","28VT120600-VT0427","GLASSE",46,3,"WOMAN",8009225640055,"CHINA","VUARNET","outside: 100% polyamide - lining: 58% polyamide 42% polyester"]
[null,"JKT","JAKET GIUBBOTTI MOD. YENNE-W","28VT120600-VT0427","GLASSE",48,4,"WOMAN",8009225640062,"CHINA","VUARNET","outside: 100% polyamide - lining: 58% polyamide 42% polyester"]
[null,"JKT","JAKET GIUBBOTTI MOD. YENNE-W","28VT120600-VT0581","SAIL NAVY",40,13,"WOMAN",8009225640123,"CHINA","VUARNET","outside: 100% polyamide - lining: 58% polyamide 42% polyester"]
[null,"JKT","JAKET GIUBBOTTI MOD. YENNE-W","28VT120600-VT0581","SAIL NAVY",42,9,"WOMAN",8009225640130,"CHINA","VUARNET","outside: 100% polyamide - lining: 58% polyamide 42% polyester"]
[null,"JKT","JAKET GIUBBOTTI MOD. YENNE-W","28VT120600-VT0581","SAIL NAVY",44,6,"WOMAN",8009225640147,"CHINA","VUARNET","outside: 100% polyamide - lining: 58% polyamide 42% polyester"]
[null,"JKT","JAKET GIUBBOTTI MOD. YENNE-W","28VT120600-VT0581","SAIL NAVY",46,6,"WOMAN",8009225640154,"CHINA","VUARNET","outside: 100% polyamide - lining: 58% polyamide 42% polyester"]
[null,"JKT","JAKET GIUBBOTTI MOD. YENNE-W","28VT120600-VT0581","SAIL NAVY",48,5,"WOMAN",8009225640161,"CHINA","VUARNET","outside: 100% polyamide - lining: 58% polyamide 42% polyester"]
[null,"JKT","JAKET GIUBBOTTI MOD. YENNE-W","28VT120600-VT0999","BLACK",40,9,"WOMAN",8009225640178,"CHINA","VUARNET","outside: 100% polyamide - lining: 58% polyamide 42% polyester"]
[null,"JKT","JAKET GIUBBOTTI MOD. YENNE-W","28VT120600-VT0999","BLACK",42,8,"WOMAN",8009225640185,"CHINA","VUARNET","outside: 100% polyamide - lining: 58% polyamide 42% polyester"]
[null,"JKT","JAKET GIUBBOTTI MOD. YENNE-W","28VT120600-VT0999","BLACK",44,5,"WOMAN",8009225640192,"CHINA","VUARNET","outside: 100% polyamide - lining: 58% polyamide 42% polyester"]
[null,"JKT","JAKET GIUBBOTTI MOD. YENNE-W","28VT120600-VT0999","BLACK",46,3,"WOMAN",8009225640208,"CHINA","VUARNET","outside: 100% polyamide - lining: 58% polyamide 42% polyester"]
[null,"JKT","JAKET GIUBBOTTI MOD. YENNE-W","28VT120600-VT0999","BLACK",48,5,"WOMAN",8009225640215,"CHINA","VUARNET","outside: 100% polyamide - lining: 58% polyamide 42% polyester"]
[null,"JKT","JAKET GIUBBOTTI MOD. EMBRUN-M","28VT120700-VT0581","SAIL NAVY",48,3,"MAN",8009225640727,"CHINA","VUARNET","outside: 100% polyamide - lining: 58% polyamide 42% polyester"]
[null,"JKT","JAKET GIUBBOTTI MOD. EMBRUN-M","28VT120700-VT0581","SAIL NAVY",54,null,"MAN",8009225640758,"CHINA","VUARNET","outside: 100% polyamide - lining: 58% polyamide 42% polyester"]
[null,"JKT","JAKET GIUBBOTTI MOD. EMBRUN-M","28VT120700-VT0581","SAIL NAVY",56,3,"MAN",8009225640765,"CHINA","VUARNET","outside: 100% polyamide - lining: 58% polyamide 42% polyester"]
[null,"JKT","JAKET GIUBBOTTI MOD. EMBRUN-M","28VT120700-VT0999","BLACK",50,10,"MAN",8009225640789,"CHINA","VUARNET","outside: 100% polyamide - lining: 58% polyamide 42% polyester"]
[null,"JKT","JAKET GIUBBOTTI MOD. EMBRUN-M","28VT120700-VT0999","BLACK",52,6,"MAN",8009225640796,"CHINA","VUARNET","outside: 100% polyamide - lining: 58% polyamide 42% polyester"]
[null,"JKT","JAKET GIUBBOTTI MOD. EMBRUN-M","28VT120700-VT0999","BLACK",54,11,"MAN",8009225640802,"CHINA","VUARNET","outside: 100% polyamide - lining: 58% polyamide 42% polyester"]
[null,"JKT","JAKET GIUBBOTTI MOD. EMBRUN-M","28VT120700-VT0999","BLACK",56,10,"MAN",8009225640819,"CHINA","VUARNET","outside: 100% polyamide - lining: 58% polyamide 42% polyester"]
[null,"JKT","JAKET GIUBBOTTI MOD. GANNAT-M","28VT120800-VT0581","SAIL NAVY",46,14,"MAN",8009225640949,"CHINA","VUARNET","outside: 100% polyamide - lining: 58% polyamide 42% polyester"]
[null,"JKT","JAKET GIUBBOTTI MOD. GANNAT-M","28VT120800-VT0581","SAIL NAVY",48,16,"MAN",8009225640956,"CHINA","VUARNET","outside: 100% polyamide - lining: 58% polyamide 42% polyester"]
[null,"JKT","JAKET GIUBBOTTI MOD. GANNAT-M","28VT120800-VT0581","SAIL NAVY",50,5,"MAN",8009225640963,"CHINA","VUARNET","outside: 100% polyamide - lining: 58% polyamide 42% polyester"]
[null,"JKT","JAKET GIUBBOTTI MOD. GANNAT-M","28VT120800-VT0999","BLACK",46,13,"MAN",8009225640970,"CHINA","VUARNET","outside: 100% polyamide - lining: 58% polyamide 42% polyester"]
[null,"JKT","JAKET GIUBBOTTI MOD. GANNAT-M","28VT120800-VT0999","BLACK",48,13,"MAN",8009225640987,"CHINA","VUARNET","outside: 100% polyamide - lining: 58% polyamide 42% polyester"]
[null,"JKT","JAKET GIUBBOTTI MOD. GANNAT-M","28VT120800-VT0999","BLACK",50,7,"MAN",8009225640994,"CHINA","VUARNET","outside: 100% polyamide - lining: 58% polyamide 42% polyester"]
[null,null,null,null,null,null,null,"MAN",null,"CHINA","VUARNET","outside: 100% polyamide - lining: 58% polyamide 42% polyester"]
[]
[null,null,null,null,null,null,1106]

{"sheet":"PALLET LIST","index":1,"n_rows":259,"n_cols":16,"rows_kept":259,"cut":false,"hidden":false,"merged":[[130,5,131,5],[130,6,131,6],[130,7,131,7],[130,10,131,10],[132,5,134,5],[132,6,134,6],[132,7,134,7],[132,10,134,10],[123,5,125,5],[123,6,125,6],[123,7,125,7],[123,10,125,10],[126,5,129,5],[126,6,129,6],[126,7,129,7],[126,10,129,10],[94,10,100,10],[101,10,104,10],[94,5,100,5],[116,5,119,5],[116,6,119,6],[116,7,119,7],[116,10,119,10],[120,5,122,5],[120,6,122,6],[120,7,122,7],[120,10,122,10],[105,10,110,10],[111,5,112,5],[111,6,112,6],[111,7,112,7],[111,10,112,10],[113,5,115,5],[113,6,115,6],[113,7,115,7],[113,10,115,10],[94,6,100,6],[94,7,100,7],[79,5,82,5],[79,6,82,6],[79,7,82,7],[101,5,104,5],[101,6,104,6],[101,7,104,7],[105,5,110,5],[105,6,110,6],[105,7,110,7],[67,10,69,10],[70,10,72,10],[73,10,78,10],[87,5,90,5],[87,6,90,6],[87,7,90,7],[91,5,93,5],[91,6,93,6],[91,7,93,7],[79,10,82,10],[83,5,86,5],[83,6,86,6],[83,7,86,7],[83,10,86,10],[87,10,90,10],[91,10,93,10],[54,5,56,5],[54,6,56,6],[54,7,56,7],[57,5,59,5],[57,6,59,6],[57,7,59,7],[60,5,66,5],[73,5,78,5],[73,6,78,6],[73,7,78,7],[67,5,69,5],[67,6,69,6],[67,7,69,7],[70,5,72,5],[70,6,72,6],[70,7,72,7],[49,6,53,6],[49,7,53,7],[49,10,53,10],[54,10,56,10],[57,10,59,10],[60,10,66,10],[60,6,66,6],[60,7,66,7],[42,10,44,10],[45,10,48,10],[42,5,44,5],[42,6,44,6],[42,7,44,7],[45,5,48,5],[45,6,48,6],[45,7,48,7],[28,10,32,10],[33,5,38,5],[33,6,38,6],[33,7,38,7],[39,5,41,5],[39,6,41,6],[39,7,41,7],[33,10,38,10],[39,10,41,10],[19,10,22,10],[23,10,27,10],[19,5,22,5],[19,6,22,6],[19,7,22,7],[23,5,27,5],[23,6,27,6],[23,7,27,7],[5,10,8,10],[9,10,13,10],[9,5,13,5],[9,6,13,6],[9,7,13,7],[14,5,18,5],[14,6,18,6],[14,7,18,7],[14,10,18,10],[132,4,134,4],[6,2,72,2],[74,2,134,2],[5,5,8,5],[5,6,8,6],[5,7,8,7],[28,5,32,5],[28,6,32,6],[28,7,32,7],[49,5,53,5],[113,4,115,4],[116,4,119,4],[120,4,122,4],[123,4,125,4],[126,4,129,4],[130,4,131,4],[87,4,90,4],[91,4,93,4],[94,4,100,4],[101,4,104,4],[105,4,110,4],[111,4,112,4],[60,4,66,4],[67,4,69,4],[70,4,72,4],[73,4,78,4],[79,4,82,4],[83,4,86,4],[39,4,41,4],[42,4,44,4],[45,4,48,4],[49,4,53,4],[54,4,56,4],[57,4,59,4],[132,13,134,13],[132,14,134,14],[132,15,134,15],[5,4,8,4],[9,4,13,4],[14,4,18,4],[19,4,22,4],[23,4,27,4],[28,4,32,4],[33,4,38,4],[126,13,129,13],[126,14,129,14],[126,15,129,15],[130,13,131,13],[130,14,131,14],[130,15,131,15],[120,13,122,13],[120,14,122,14],[120,15,122,15],[123,13,125,13],[123,14,125,14],[123,15,125,15],[113,13,115,13],[113,14,115,14],[113,15,115,15],[116,13,119,13],[116,14,119,14],[116,15,119,15],[105,13,110,13],[105,14,110,14],[105,15,110,15],[111,13,112,13],[111,14,112,14],[111,15,112,15],[94,13,100,13],[94,14,100,14],[94,15,100,15],[101,13,104,13],[101,14,104,14],[101,15,104,15],[87,13,90,13],[87,14,90,14],[87,15,90,15],[91,13,93,13],[91,14,93,14],[91,15,93,15],[79,13,82,13],[79,14,82,14],[79,15,82,15],[83,13,86,13],[83,14,86,14],[83,15,86,15],[70,13,72,13],[70,14,72,14],[70,15,72,15],[73,13,78,13],[73,14,78,14],[73,15,78,15],[60,13,66,13],[60,14,66,14],[60,15,66,15],[67,13,69,13],[67,14,69,14],[67,15,69,15],[54,13,56,13],[54,14,56,14],[54,15,56,15],[57,13,59,13],[57,14,59,14],[57,15,59,15],[49,13,53,13],[49,14,53,14],[49,15,53,15],[39,13,41,13],[39,14,41,14],[39,15,41,15],[42,13,44,13],[42,14,44,14],[42,15,44,15],[14,15,18,15],[19,13,22,13],[19,14,22,14],[19,15,22,15],[23,13,27,13],[23,14,27,14],[23,15,27,15],[45,13,48,13],[45,14,48,14],[45,15,48,15],[5,13,8,13],[5,14,8,14],[5,15,8,15],[9,13,13,13],[9,14,13,14],[9,15,13,15],[14,13,18,13],[14,14,18,14],[113,3,115,3],[87,3,90,3],[91,3,93,3],[94,3,100,3],[101,3,104,3],[105,3,110,3],[111,3,112,3],[60,3,66,3],[67,3,69,3],[70,3,72,3],[28,13,32,13],[28,14,32,14],[28,15,32,15],[33,13,38,13],[33,14,38,14],[33,15,38,15],[5,1,72,1],[73,1,134,1],[5,3,8,3],[9,3,13,3],[14,3,18,3],[19,3,22,3],[23,3,27,3],[28,3,32,3],[33,3,38,3],[73,3,78,3],[79,3,82,3],[83,3,86,3],[39,3,41,3],[42,3,44,3],[45,3,48,3],[49,3,53,3],[54,3,56,3],[57,3,59,3],[132,3,134,3],[116,3,119,3],[120,3,122,3],[123,3,125,3],[126,3,129,3],[130,3,131,3],[135,3,136,3],[135,4,136,4],[135,13,136,13],[135,14,136,14],[137,13,141,13],[137,14,141,14],[135,15,136,15],[137,15,141,15],[137,4,141,4],[137,3,141,3],[149,13,152,13],[149,14,152,14],[149,15,152,15],[149,4,152,4],[149,3,152,3],[153,13,154,13],[153,14,154,14],[153,15,154,15],[153,4,154,4],[153,3,154,3],[142,13,144,13],[142,14,144,14],[142,15,144,15],[142,4,144,4],[142,3,144,3],[145,13,148,13],[145,14,148,14],[145,15,148,15],[145,4,148,4],[145,3,148,3],[155,3,158,3],[155,15,158,15],[159,13,163,13],[159,14,163,14],[159,4,163,4],[159,3,163,3],[159,15,163,15],[164,3,165,3],[164,4,165,4],[164,13,165,13],[164,14,165,14],[164,15,165,15],[155,13,158,13],[155,14,158,14],[155,4,158,4],[166,13,168,13],[166,14,168,14],[166,15,168,15],[166,4,168,4],[166,3,168,3],[169,13,173,13],[169,14,173,14],[169,15,173,15],[169,4,173,4],[169,3,173,3],[182,13,184,13],[182,14,184,14],[182,15,184,15],[182,4,184,4],[182,3,184,3],[174,13,175,13],[174,14,175,14],[174,15,175,15],[174,4,175,4],[174,3,175,3],[176,13,179,13],[176,14,179,14],[176,15,179,15],[176,4,179,4],[176,3,179,3],[194,13,195,13],[194,14,195,14],[194,15,195,15],[194,4,195,4],[194,3,195,3],[185,1,197,1],[186,2,197,2],[135,1,184,1],[136,2,184,2],[190,13,191,13],[190,14,191,14],[190,15,191,15],[190,4,191,4],[190,3,191,3],[185,3,189,3],[185,4,189,4],[185,13,189,13],[185,14,189,14],[185,15,189,15],[180,3,181,3],[180,4,181,4],[180,13,181,13],[180,14,181,14],[180,15,181,15]]}
[]
[]
[]
[]
[null,"PALLET NUMBER","PALLET SIZE","BOX NUMBER","Q.TY","BOX Length (m)","BOX width (m)","BOX heigth (m)","ARTICLE","BARCODE","Country of origin","SIZE","Q.TY (pcs)","NW Kg","GW Kg (without pellet)","BOX/CBM"]
[null,1,"1,20*0,80*1,80",1,25,0.6,0.4,0.4,"JAKET GIUBBOTTI MOD. MONNINS-W28VT120000-VT0101OFF-WHITE40",{"$f":"IF(I6=\"inserisci\",\"ND\",VLOOKUP(I6,DATI,2,FALSE))","v":8009225641229},"CHINA",40,8,8,9,9.6000000000000002E-2]
[null,null,null,null,null,null,null,null,"JAKET GIUBBOTTI MOD. MONNINS-W28VT120000-VT0101OFF-WHITE42",8009225641236,null,42,11]
[null,null,null,null,null,null,null,null,"JAKET GIUBBOTTI MOD. MONNINS-W28VT120000-VT0101OFF-WHITE44",8009225641243,null,44,3]
[null,null,null,null,null,null,null,null,"JAKET GIUBBOTTI MOD. MONNINS-W28VT120000-VT0101OFF-WHITE48",8009225641267,null,48,3]
[null,null,null,2,25,0.6,0.4,0.4,"JAKET GIUBBOTTI MOD. MONNINS-W28VT120000-VT0101OFF-WHITE44",8009225641243,"CHINA",44,7,8.3000000000000007,9.3000000000000007,9.6000000000000002E-2]
[null,null,null,null,null,null,null,null,"JAKET GIUBBOTTI MOD. MONNINS-W28VT120000-VT0101OFF-WHITE46",8009225641250,null,46,5]
[null,null,null,null,null,null,null,null,"JAKET GIUBBOTTI MOD. MONNINS-W28VT120000-VT0107GARDENIA40",8009225639875,null,40,2]
[null,null,null,null,null,null,null,null,"JAKET GIUBBOTTI MOD. MONNINS-W28VT120000-VT0107GARDENIA42",8009225639882,null,42,6]
[null,null,null,null,null,null,null,null,"JAKET GIUBBOTTI MOD. MONNINS-W28VT120000-VT0107GARDENIA44",8009225639899,null,44,5]
[null,null,null,3,25,0.6,0.4,0.4,"JAKET GIUBBOTTI MOD. MONNINS-W28VT120000-VT0107GARDENIA40",8009225639875,"CHINA",40,7,8,9,9.6000000000000002E-2]
[null,null,null,null,null,null,null,null,"JAKET GIUBBOTTI MOD. MONNINS-W28VT120000-VT0107GARDENIA42",8009225639882,null,42,1]
[null,null,null,null,null,null,null,null,"JAKET GIUBBOTTI MOD. MONNINS-W28VT120000-VT0107GARDENIA44",8009225639899,null,44,5]
[null,null,null,null,null,null,null,null,"JAKET GIUBBOTTI MOD. MONNINS-W28VT120000-VT0107GARDENIA46",8009225639905,null,46,4]
[null,null,null,null,null,null,null,null,"JAKET GIUBBOTTI MOD. MONNINS-W28VT120000-VT0427GLASSE42",8009225639783,null,42,8]
[null,null,null,4,25,0.6,0.4,0.4,"JAKET GIUBBOTTI MOD. MONNINS-W28VT120000-VT0427GLASSE40",8009225639776,"CHINA",40,8,8.5,9.5,9.6000000000000002E-2]
[null,null,null,null,null,null,null,null,"JAKET GIUBBOTTI MOD. MONNINS-W28VT120000-VT0427GLASSE42",8009225639783,null,42,2]
[null,null,null,null,null,null,null,null,"JAKET GIUBBOTTI MOD. MONNINS-W28VT120000-VT0427GLASSE44",8009225639790,null,44,12]
[null,null,null,null,null,null,null,null,"JAKET GIUBBOTTI MOD. MONNINS-W28VT120000-VT0427GLASSE46",8009225639806,null,46,3]
[null,null,null,5,25,0.6,0.4,0.4,"JAKET GIUBBOTTI MOD. MONNINS-W28VT120000-VT0427GLASSE46",8009225639806,"CHINA",46,2,8.5,9.5,9.6000000000000002E-2]
[null,null,null,null,null,null,null,null,"JAKET GIUBBOTTI MOD. MONNINS-W28VT120000-VT0427GLASSE48",8009225639813,null,48,3]
[null,null,null,null,null,null,null,null,"JAKET GIUBBOTTI MOD. MONNINS-W28VT120000-VT0581SAIL NAVY40",8009225639929,null,40,7]
[null,null,null,null,null,null,null,null,"JAKET GIUBBOTTI MOD. MONNINS-W28VT120000-VT0581SAIL NAVY42",8009225639936,null,42,11]
[null,null,null,null,null,null,null,null,"JAKET GIUBBOTTI MOD. MONNINS-W28VT120000-VT0581SAIL NAVY44",8009225639943,null,44,2]
[null,null,null,6,25,0.6,0.4,0.4,"JAKET GIUBBOTTI MOD. MONNINS-W28VT120000-VT0581SAIL NAVY44",8009225639943,"CHINA",44,7,8,9,9.6000000000000002E-2]
[null,null,null,null,null,null,null,null,"JAKET GIUBBOTTI MOD. MONNINS-W28VT120000-VT0581SAIL NAVY46",8009225639950,null,46,3]
[null,null,null,null,null,null,null,null,"JAKET GIUBBOTTI MOD. MONNINS-W28VT120000-VT0581SAIL NAVY48",8009225639967,null,48,2]
[null,null,null,null,null,null,null,null,"JAKET GIUBBOTTI MOD. MONNINS-W28VT120000-VT0711CIPRIA40",8009225639820,null,40,11]
[null,null,null,null,null,null,null,null,"JAKET GIUBBOTTI MOD. MONNINS-W28VT120000-VT0711CIPRIA42",8009225639837,null,42,2]
[null,null,null,7,25,0.6,0.4,0.4,"JAKET GIUBBOTTI MOD. MONNINS-W28VT120000-VT0581SAIL NAVY44",8009225639943,"CHINA",44,1,8.5,9.5,9.6000000000000002E-2]
[null,null,null,null,null,null,null,null,"JAKET GIUBBOTTI MOD. MONNINS-W28VT120000-VT0581SAIL NAVY46",8009225639950,null,46,2]
[null,null,null,null,null,null,null,null,"JAKET GIUBBOTTI MOD. MONNINS-W28VT120000-VT0711CIPRIA42",8009225639837,null,42,10]
[null,null,null,null,null,null,null,null,"JAKET GIUBBOTTI MOD. MONNINS-W28VT120000-VT0711CIPRIA44",8009225639844,null,44,4]
[null,null,null,null,null,null,null,null,"JAKET GIUBBOTTI MOD. MONNINS-W28VT120000-VT0711CIPRIA46",{"$f":"IF(I38=\"inserisci\",\"ND\",VLOOKUP(I38,DATI,2,FALSE))","v":8009225639851},null,46,6]
[null,null,null,null,null,null,null,null,"JAKET GIUBBOTTI MOD. MONNINS-W28VT120000-VT0711CIPRIA48",8009225639868,null,48,2]
[null,null,null,8,25,0.6,0.4,0.4,"JAKET GIUBBOTTI MOD. MONNINS-W28VT120000-VT0999BLACK40",8009225639974,"CHINA",40,4,8.5,9.5,9.6000000000000002E-2]
[null,null,null,null,null,null,null,null,"JAKET GIUBBOTTI MOD. MONNINS-W28VT120000-VT0999BLACK42",8009225639981,null,42,9]
[null,null,null,null,null,null,null,null,"JAKET GIUBBOTTI MOD. MONNINS-W28VT120000-VT0999BLACK44",8009225639998,null,44,12]
[null,null,null,9,14,0.6,0.4,0.4,"JAKET GIUBBOTTI MOD. MONNINS-W28VT120000-VT0999BLACK42",8009225639981,"CHINA",42,1,5,6,9.6000000000000002E-2]
[null,null,null,null,null,null,null,null,"JAKET GIUBBOTTI MOD. MONNINS-W28VT120000-VT0999BLACK46",8009225640000,null,46,6]
[null,null,null,null,null,null,null,null,"JAKET GIUBBOTTI MOD. MONNINS-W28VT120000-VT0999BLACK48",8009225640017,null,48,7]
[null,null,null,10,25,0.6,0.4,0.4,"JAKET GIUBBOTTI MOD. VILLETTE-W28VT120100-VT0101OFF-WHITE40",8009225641274,"CHINA",40,8,10.5,11.5,9.6000000000000002E-2]
[null,null,null,null,null,null,null,null,"JAKET GIUBBOTTI MOD. VILLETTE-W28VT120100-VT0101OFF-WHITE42",8009225641281,null,42,6]
[null,null,null,null,null,null,null,null,"JAKET GIUBBOTTI MOD. VILLETTE-W28VT120100-VT0101OFF-WHITE44",8009225641298,null,44,8]
[null,null,null,null,null,null,null,null,"JAKET GIUBBOTTI MOD. VILLETTE-W28VT120100-VT0101OFF-WHITE46",8009225641304,null,46,3]
[null,null,null,11,25,0.6,0.4,0.4,"JAKET GIUBBOTTI MOD. VILLETTE-W28VT120100-VT0101OFF-WHITE46",8009225641304,"CHINA",46,3,11.5,12.5,9.6000000000000002E-2]
[null,null,null,null,null,null,null,null,"JAKET GIUBBOTTI MOD. VILLETTE-W28VT120100-VT0101OFF-WHITE48",8009225641311,null,48,2]
[null,null,null,null,null,null,null,null,"JAKET GIUBBOTTI MOD. VILLETTE-W28VT120100-VT0101OFF-WHITE50",8009225641328,null,50,2]
[null,null,null,null,null,null,null,null,"JAKET GIUBBOTTI MOD. VILLETTE-W28VT120100-VT0107GARDENIA42",8009225640406,null,42,8]
[null,null,null,null,null,null,null,null,"JAKET GIUBBOTTI MOD. VILLETTE-W28VT120100-VT0107GARDENIA44",8009225640413,null,44,10]
[null,null,null,12,20,0.6,0.4,0.4,"JAKET GIUBBOTTI MOD. VILLETTE-W28VT120100-VT0107GARDENIA40",8009225640390,"CHINA",40,7,9,10,9.6000000000000002E-2]
[null,null,null,null,null,null,null,null,"JAKET GIUBBOTTI MOD. VILLETTE-W28VT120100-VT0107GARDENIA46",8009225640420,null,46,8]
[null,null,null,null,null,null,null,null,"JAKET GIUBBOTTI MOD. VILLETTE-W28VT120100-VT0107GARDENIA48",8009225640437,null,48,5]
[null,null,null,13,21,0.6,0.4,0.4,"JAKET GIUBBOTTI MOD. VILLETTE-W28VT120100-VT0427GLASSE40",8009225640284,"CHINA",40,5,9,10,9.6000000000000002E-2]
[null,null,null,null,null,null,null,null,"JAKET GIUBBOTTI MOD. VILLETTE-W28VT120100-VT0427GLASSE42",8009225640291,null,42,9]
[null,null,null,null,null,null,null,null,"JAKET GIUBBOTTI MOD. VILLETTE-W28VT120100-VT0427GLASSE44",8009225640307,null,44,7]
[null,null,null,14,22,0.6,0.4,0.4,"JAKET GIUBBOTTI MOD. VILLETTE-W28VT120100-VT0427GLASSE46",8009225640314,"CHINA",46,3,10.5,11.5,9.6000000000000002E-2]
[null,null,null,null,null,null,null,null,"JAKET GIUBBOTTI MOD. VILLETTE-W28VT120100-VT0427GLASSE48",8009225640321,null,48,2]
[null,null,null,null,null,null,null,null,"JAKET GIUBBOTTI MOD. VILLETTE-W28VT120100-VT0427GLASSE50",8009225639141,null,50,4]
[null,null,null,null,null,null,null,null,"JAKET GIUBBOTTI MOD. VILLETTE-W28VT120100-VT0581SAIL NAVY44",8009225640468,null,44,3]
[null,null,null,null,null,null,null,null,"JAKET GIUBBOTTI MOD. VILLETTE-W28VT120100-VT0581SAIL NAVY46",8009225640475,null,46,3]
[null,null,null,null,null,null,null,null,"JAKET GIUBBOTTI MOD. VILLETTE-W28VT120100-VT0581SAIL NAVY48",8009225640482,null,48,2]
[null,null,null,null,null,null,null,null,"JAKET GIUBBOTTI MOD. VILLETTE-W28VT120100-VT0581SAIL NAVY50",8009225640499,null,50,5]
[null,null,null,15,18,0.6,0.4,0.4,"JAKET GIUBBOTTI MOD. VILLETTE-W28VT120100-VT0427GLASSE40",8009225640284,"CHINA",40,1,7.5,8.5,9.6000000000000002E-2]
[null,null,null,null,null,null,null,null,"JAKET GIUBBOTTI MOD. VILLETTE-W28VT120100-VT0711CIPRIA40",8009225640345,null,40,7]
[null,null,null,null,null,null,null,null,"JAKET GIUBBOTTI MOD. VILLETTE-W28VT120100-VT0711CIPRIA42",{"$f":"IF(I70=\"inserisci\",\"ND\",VLOOKUP(I70,DATI,2,FALSE))","v":8009225640352},null,42,10]
[null,null,null,16,18,0.6,0.4,0.4,"JAKET GIUBBOTTI MOD. VILLETTE-W28VT120100-VT0711CIPRIA44",8009225640369,"CHINA",44,9,8,9,9.6000000000000002E-2]
[null,null,null,null,null,null,null,null,"JAKET GIUBBOTTI MOD. VILLETTE-W28VT120100-VT0711CIPRIA46",8009225640376,null,46,7]
[null,null,null,null,null,null,null,null,"JAKET GIUBBOTTI MOD. VILLETTE-W28VT120100-VT0711CIPRIA48",8009225640383,null,48,2]
[null,2,"1,20*0,80*1,80",17,16,0.6,0.4,0.4,"JAKET GIUBBOTTI MOD. VILLETTE-W28VT120100-VT0999BLACK40",8009225640505,"CHINA",40,3,7,8,9.6000000000000002E-2]
[null,null,null,null,null,null,null,null,"JAKET GIUBBOTTI MOD. VILLETTE-W28VT120100-VT0999BLACK42",8009225640512,null,42,2]
[null,null,null,null,null,null,null,null,"JAKET GIUBBOTTI MOD. VILLETTE-W28VT120100-VT0999BLACK44",8009225640529,null,44,3]
[null,null,null,null,null,null,null,null,"JAKET GIUBBOTTI MOD. VILLETTE-W28VT120100-VT0999BLACK46",8009225640536,null,46,3]
[null,null,null,null,null,null,null,null,"JAKET GIUBBOTTI MOD. VILLETTE-W28VT120100-VT0999BLACK48",8009225640543,null,48,3]
[null,null,null,null,null,null,null,null,"JAKET GIUBBOTTI MOD. VILLETTE-W28VT120100-VT0999BLACK50",8009225640550,null,50,2]
[null,null,null,18,26,0.6,0.4,0.4,"JAKET GIUBBOTTI MOD. ANNECY-W28VT120200-VT0101OFF-WHITE40",8009225641113,"CHINA",40,8,9.5,10.5,9.6000000000000002E-2]
[null,null,null,null,null,null,null,null,"JAKET GIUBBOTTI MOD. ANNECY-W28VT120200-VT0101OFF-WHITE42",8009225641120,null,42,8]
[null,null,null,null,null,null,null,null,"JAKET GIUBBOTTI MOD. ANNECY-W28VT120200-VT0101OFF-WHITE44",8009225641137,null,44,6]
[null,null,null,null,null,null,null,null,"JAKET GIUBBOTTI MOD. ANNECY-W28VT120200-VT0101OFF-WHITE48",8009225641151,null,48,4]
[null,null,null,19,24,0.6,0.4,0.4,"JAKET GIUBBOTTI MOD. ANNECY-W28VT120200-VT0101OFF-WHITE46",8009225641144,"CHINA",46,4,8,9,9.6000000000000002E-2]
[null,null,null,null,null,null,null,null,"JAKET GIUBBOTTI MOD. ANNECY-W28VT120200-VT0101OFF-WHITE50",8009225641168,null,50,3]
[null,null,null,null,null,null,null,null,"JAKET GIUBBOTTI MOD. ANNECY-W28VT120200-VT0107GARDENIA40",8009225639202,null,40,10]
[null,null,null,null,null,null,null,null,"JAKET GIUBBOTTI MOD. ANNECY-W28VT120200-VT0107GARDENIA42",8009225639219,null,42,7]
[null,null,null,20,20,0.6,0.4,0.4,"JAKET GIUBBOTTI MOD. ANNECY-W28VT120200-VT0107GARDENIA42",8009225639219,"CHINA",42,2,7.5,8.5,9.6000000000000002E-2]
[null,null,null,null,null,null,null,null,"JAKET GIUBBOTTI MOD. ANNECY-W28VT120200-VT0107GARDENIA44",8009225639226,null,44,7]
[null,null,null,null,null,null,null,null,"JAKET GIUBBOTTI MOD. ANNECY-W28VT120200-VT0107GARDENIA46",8009225639233,null,46,5]
[null,null,null,null,null,null,null,null,"JAKET GIUBBOTTI MOD. ANNECY-W28VT120200-VT0107GARDENIA48",8009225639240,null,48,6]
[null,null,null,21,25,0.6,0.4,0.4,"JAKET GIUBBOTTI MOD. ANNECY-W28VT120200-VT0427GLASSE40",8009225639097,"CHINA",40,8,9,10,9.6000000000000002E-2]
[null,null,null,null,null,null,null,null,"JAKET GIUBBOTTI MOD. ANNECY-W28VT120200-VT0427GLASSE42",8009225639103,null,42,11]
[null,null,null,null,null,null,null,null,"JAKET GIUBBOTTI MOD. ANNECY-W28VT120200-VT0427GLASSE44",8009225639110,null,44,6]
[null,null,null,22,19,0.6,0.4,0.4,"JAKET GIUBBOTTI MOD. ANNECY-W28VT120200-VT0427GLASSE44",8009225639110,"CHINA",44,1,7.5,8.5,9.6000000000000002E-2]
[null,null,null,null,null,null,null,null,"JAKET GIUBBOTTI MOD. ANNECY-W28VT120200-VT0427GLASSE46",8009225639127,null,46,6]
[null,null,null,null,null,null,null,null,"JAKET GIUBBOTTI MOD. ANNECY-W28VT120200-VT0427GLASSE48",8009225639134,null,48,4]
[null,null,null,null,null,null,null,null,"JAKET GIUBBOTTI MOD. ANNECY-W28VT120200-VT0427GLASSE50",8009225639141,null,50,3]
[null,null,null,null,null,null,null,null,"JAKET GIUBBOTTI MOD. ANNECY-W28VT120200-VT0999BLACK42",8009225639332,null,42,1]
[null,null,null,null,null,null,null,null,"JAKET GIUBBOTTI MOD. ANNECY-W28VT120200-VT0999BLACK44",8009225639349,null,44,2]
[null,null,null,null,null,null,null,null,"JAKET GIUBBOTTI MOD. ANNECY-W28VT120200-VT0999BLACK48",8009225639363,null,48,2]
[null,null,null,23,26,0.6,0.4,0.4,"JAKET GIUBBOTTI MOD. ANNECY-W28VT120200-VT0711CIPRIA40",{"$f":"IF(I102=\"inserisci\",\"ND\",VLOOKUP(I102,DATI,2,FALSE))","v":8009225639158},"CHINA",40,9,9,10,9.6000000000000002E-2]
[null,null,null,null,null,null,null,null,"JAKET GIUBBOTTI MOD. ANNECY-W28VT120200-VT0711CIPRIA42",8009225639165,null,42,7]
[null,null,null,null,null,null,null,null,"JAKET GIUBBOTTI MOD. ANNECY-W28VT120200-VT0711CIPRIA44",8009225639172,null,44,5]
[null,null,null,null,null,null,null,null,"JAKET GIUBBOTTI MOD. ANNECY-W28VT120200-VT0711CIPRIA46",8009225639189,null,46,5]
[null,null,null,24,20,0.6,0.4,0.4,"JAKET GIUBBOTTI MOD. ANNECY-W28VT120200-VT0711CIPRIA48",8009225639196,"CHINA",48,5,7.5,8.5,9.6000000000000002E-2]
[null,null,null,null,null,null,null,null,"JAKET GIUBBOTTI MOD. ANNECY-W28VT120200-VT0581SAIL NAVY40",8009225639264,null,40,5]
[null,null,null,null,null,null,null,null,"JAKET GIUBBOTTI MOD. ANNECY-W28VT120200-VT0581SAIL NAVY42",8009225639271,null,42,3]
[null,null,null,null,null,null,null,null,"JAKET GIUBBOTTI MOD. ANNECY-W28VT120200-VT0581SAIL NAVY44",8009225639288,null,44,1]
[null,null,null,null,null,null,null,null,"JAKET GIUBBOTTI MOD. ANNECY-W28VT120200-VT0581SAIL NAVY48",8009225639301,null,48,3]
[null,null,null,null,null,null,null,null,"JAKET GIUBBOTTI MOD. ANNECY-W28VT120200-VT0581SAIL NAVY50",8009225639318,null,50,3]
[null,null,null,25,20,0.6,0.4,0.4,"JAKET GIUBBOTTI MOD. CUSSET-W28VT120300-VT0107GARDENIA40",8009225640604,"CHINA",40,14,7.5,8.5,9.6000000000000002E-2]
[null,null,null,null,null,null,null,null,"JAKET GIUBBOTTI MOD. CUSSET-W28VT120300-VT0107GARDENIA42",8009225640611,null,42,6]
[null,null,null,26,20,0.6,0.4,0.4,"JAKET GIUBBOTTI MOD. CUSSET-W28VT120300-VT0107GARDENIA42",8009225640611,"CHINA",42,7,7.5,8.5,9.6000000000000002E-2]
[null,null,null,null,null,null,null,null,"JAKET GIUBBOTTI MOD. CUSSET-W28VT120300-VT0107GARDENIA44",8009225640628,null,44,10]
[null,null,null,null,null,null,null,null,"JAKET GIUBBOTTI MOD. CUSSET-W28VT120300-VT0107GARDENIA46",8009225640635,null,46,3]
[null,null,null,27,20,0.6,0.4,0.4,"JAKET GIUBBOTTI MOD. CUSSET-W28VT120300-VT0107GARDENIA42",8009225640611,"CHINA",42,1,7.5,8.5,9.6000000000000002E-2]
[null,null,null,null,null,null,null,null,"JAKET GIUBBOTTI MOD. CUSSET-W28VT120300-VT0427GLASSE40",8009225640567,null,40,9]
[null,null,null,null,null,null,null,null,"JAKET GIUBBOTTI MOD. CUSSET-W28VT120300-VT0427GLASSE42",8009225640574,null,42,3]
[null,null,null,null,null,null,null,null,"JAKET GIUBBOTTI MOD. CUSSET-W28VT120300-VT0427GLASSE44",8009225640581,null,44,7]
[null,null,null,28,18,0.6,0.4,0.4,"JAKET GIUBBOTTI MOD. CUSSET-W28VT120300-VT0427GLASSE46",8009225640598,"CHINA",46,4,7,8,9.6000000000000002E-2]
[null,null,null,null,null,null,null,null,"JAKET GIUBBOTTI MOD. CUSSET-W28VT120300-VT0581SAIL NAVY40",8009225640642,null,40,9]
[null,null,null,null,null,null,null,null,"JAKET GIUBBOTTI MOD. CUSSET-W28VT120300-VT0581SAIL NAVY42",8009225640659,null,42,5]
[null,null,null,29,24,0.6,0.4,0.4,"JAKET GIUBBOTTI MOD. CUSSET-W28VT120300-VT0581SAIL NAVY42",{"$f":"IF(I124=\"inserisci\",\"ND\",VLOOKUP(I124,DATI,2,FALSE))","v":8009225640659},"CHINA",42,5,10,11,9.6000000000000002E-2]
[null,null,null,null,null,null,null,null,"JAKET GIUBBOTTI MOD. CUSSET-W28VT120300-VT0581SAIL NAVY44",8009225640666,null,44,11]
[null,null,null,null,null,null,null,null,"JAKET GIUBBOTTI MOD. CUSSET-W28VT120300-VT0581SAIL NAVY46",8009225640673,null,46,8]
[null,null,null,30,21,0.6,0.4,0.4,"JAKET GIUBBOTTI MOD. CUSSET-W28VT120300-VT0999BLACK40",8009225640680,"CHINA",40,4,8,9,9.6000000000000002E-2]
[null,null,null,null,null,null,null,null,"JAKET GIUBBOTTI MOD. CUSSET-W28VT120300-VT0999BLACK42",8009225640697,null,42,6]
[null,null,null,null,null,null,null,null,"JAKET GIUBBOTTI MOD. CUSSET-W28VT120300-VT0999BLACK44",8009225640703,null,44,6]
[null,null,null,null,null,null,null,null,"JAKET GIUBBOTTI MOD. CUSSET-W28VT120300-VT0999BLACK46",8009225640710,null,46,5]
[null,null,null,31,20,0.6,0.4,0.4,"JAKET GIUBBOTTI MOD. VICHY-W28VT120500-VT0101OFF-WHITE40",8009225641175,"CHINA",40,11,7,8,9.6000000000000002E-2]
[null,null,null,null,null,null,null,null,"JAKET GIUBBOTTI MOD. VICHY-W28VT120500-VT0101OFF-WHITE42",8009225641182,null,42,9]
[null,null,null,32,20,0.6,0.4,0.4,"JAKET GIUBBOTTI MOD. VICHY-W28VT120500-VT0101OFF-WHITE44",8009225641199,"CHINA",44,11,8,9,9.6000000000000002E-2]
[null,null,null,null,null,null,null,null,"JAKET GIUBBOTTI MOD. VICHY-W28VT120500-VT0101OFF-WHITE46",8009225641205,null,46,7]
[null,null,null,null,null,null,null,null,"JAKET GIUBBOTTI MOD. VICHY-W28VT120500-VT0101OFF-WHITE48",8009225641212,null,48,2]
[null,3,null,33,18,0.6,0.4,0.4,"JAKET GIUBBOTTI MOD. VICHY-W28VT120500-VT0107GARDENIA40",8009225639547,"CHINA",40,8,6.5,7.5,9.6000000000000002E-2]
[null,null,null,null,null,0.6,0.4,0.4,"JAKET GIUBBOTTI MOD. VICHY-W28VT120500-VT0107GARDENIA42",8009225639554,"CHINA",42,10]
[null,null,null,34,23,0.6,0.4,0.4,"JAKET GIUBBOTTI MOD. VICHY-W28VT120500-VT0107GARDENIA44",8009225639561,"CHINA",44,8,8.5,9.5,9.6000000000000002E-2]
[null,null,null,null,null,0.6,0.4,0.4,"JAKET GIUBBOTTI MOD. VICHY-W28VT120500-VT0107GARDENIA46",8009225639578,"CHINA",46,3]
[null,null,null,null,null,0.6,0.4,0.4,"JAKET GIUBBOTTI MOD. VICHY-W28VT120500-VT0107GARDENIA48",8009225639585,"CHINA",48,1]
[null,null,null,null,null,0.6,0.4,0.4,"JAKET GIUBBOTTI MOD. VICHY-W28VT120500-VT0107GARDENIA50",8009225639592,"CHINA",50,3]
[null,null,null,null,null,0.6,0.4,0.4,"JAKET GIUBBOTTI MOD. VICHY-W28VT120500-VT0427GLASSE40",8009225639431,"CHINA",40,8]
[null,null,null,35,22,0.6,0.4,0.4,"JAKET GIUBBOTTI MOD. VICHY-W28VT120500-VT0427GLASSE42",8009225639448,"CHINA",42,7,8,9,9.6000000000000002E-2]
[null,null,null,null,null,0.6,0.4,0.4,"JAKET GIUBBOTTI MOD. VICHY-W28VT120500-VT0427GLASSE44",8009225639455,"CHINA",44,8]
[null,null,null,null,null,0.6,0.4,0.4,"JAKET GIUBBOTTI MOD. VICHY-W28VT120500-VT0427GLASSE46",8009225639462,"CHINA",46,7]
[null,null,null,36,22,0.6,0.4,0.4,"JAKET GIUBBOTTI MOD. VICHY-W28VT120500-VT0427GLASSE48",8009225639479,"CHINA",48,3,8,9,9.6000000000000002E-2]
[null,null,null,null,null,0.6,0.4,0.4,"JAKET GIUBBOTTI MOD. VICHY-W28VT120500-VT0427GLASSE50",8009225639486,"CHINA",50,5]
[null,null,null,null,null,0.6,0.4,0.4,"JAKET GIUBBOTTI MOD. VICHY-W28VT120500-VT0581SAIL NAVY40",8009225639608,"CHINA",40,7]
[null,null,null,null,null,0.6,0.4,0.4,"JAKET GIUBBOTTI MOD. VICHY-W28VT120500-VT0581SAIL NAVY42",8009225639615,"CHINA",42,7]
[null,null,null,37,21,0.6,0.4,0.4,"JAKET GIUBBOTTI MOD. VICHY-W28VT120500-VT0581SAIL NAVY44",8009225639622,"CHINA",44,10,7.5,8.5,9.6000000000000002E-2]
[null,null,null,null,null,0.6,0.4,0.4,"JAKET GIUBBOTTI MOD. VICHY-W28VT120500-VT0581SAIL NAVY46",8009225639639,"CHINA",46,5]
[null,null,null,null,null,0.6,0.4,0.4,"JAKET GIUBBOTTI MOD. VICHY-W28VT120500-VT0581SAIL NAVY48",8009225639646,"CHINA",48,3]
[null,null,null,null,null,0.6,0.4,0.4,"JAKET GIUBBOTTI MOD. VICHY-W28VT120500-VT0581SAIL NAVY50",8009225639653,"CHINA",50,3]
[null,null,null,38,23,0.6,0.4,0.4,"JAKET GIUBBOTTI MOD. VICHY-W28VT120500-VT0711CIPRIA40",8009225639493,"CHINA",40,10,8,9,9.6000000000000002E-2]
[null,null,null,null,null,0.6,0.4,0.4,"JAKET GIUBBOTTI MOD. VICHY-W28VT120500-VT0711CIPRIA42",8009225639509,"CHINA",42,13]
[null,null,null,39,19,0.6,0.4,0.4,"JAKET GIUBBOTTI MOD. VICHY-W28VT120500-VT0711CIPRIA44",8009225639516,"CHINA",44,2,7,8,9.6000000000000002E-2]
[null,null,null,null,null,0.6,0.4,0.4,"JAKET GIUBBOTTI MOD. VICHY-W28VT120500-VT0711CIPRIA46",8009225639523,"CHINA",46,7]
[null,null,null,null,null,0.6,0.4,0.4,"JAKET GIUBBOTTI MOD. VICHY-W28VT120500-VT0711CIPRIA48",8009225639530,"CHINA",48,3]
[null,null,null,null,null,0.6,0.4,0.4,"JAKET GIUBBOTTI MOD. VICHY-W28VT120500-VT0999BLACK40",8009225639660,"CHINA",40,7]
[null,null,null,40,26,0.6,0.4,0.4,"JAKET GIUBBOTTI MOD. VICHY-W28VT120500-VT0999BLACK42",8009225639677,"CHINA",42,6,9,10,9.6000000000000002E-2]
[null,null,null,null,null,0.6,0.4,0.4,"JAKET GIUBBOTTI MOD. VICHY-W28VT120500-VT0999BLACK44",8009225639684,"CHINA",44,9]
[null,null,null,null,null,0.6,0.4,0.4,"JAKET GIUBBOTTI MOD. VICHY-W28VT120500-VT0999BLACK46",8009225639691,"CHINA",46,4]
[null,null,null,null,null,0.6,0.4,0.4,"JAKET GIUBBOTTI MOD. VICHY-W28VT120500-VT0999BLACK48",8009225639707,"CHINA",48,3]
[null,null,null,null,null,0.6,0.4,0.4,"JAKET GIUBBOTTI MOD. VICHY-W28VT120500-VT0999BLACK50",8009225639714,"CHINA",50,4]
[null,null,null,41,19,0.6,0.4,0.4,"JAKET GIUBBOTTI MOD. YENNE-W28VT120600-VT0107GARDENIA40",8009225640079,"CHINA",40,11,9,10,9.6000000000000002E-2]
[null,null,null,null,null,0.6,0.4,0.4,"JAKET GIUBBOTTI MOD. YENNE-W28VT120600-VT0107GARDENIA42",8009225640086,"CHINA",42,8]
[null,null,null,42,10,0.6,0.4,0.4,"JAKET GIUBBOTTI MOD. YENNE-W28VT120600-VT0107GARDENIA44",8009225640093,"CHINA",44,8,5,6,9.6000000000000002E-2]
[null,null,null,null,null,0.6,0.4,0.4,"JAKET GIUBBOTTI MOD. YENNE-W28VT120600-VT0107GARDENIA46",8009225640109,"CHINA",46,1]
[null,null,null,null,null,0.6,0.4,0.4,"JAKET GIUBBOTTI MOD. YENNE-W28VT120600-VT0107GARDENIA48",8009225640116,"CHINA",48,1]
[null,null,null,43,22,0.6,0.4,0.4,"JAKET GIUBBOTTI MOD. YENNE-W28VT120600-VT0427GLASSE40",8009225640024,"CHINA",40,8,10.5,11.5,9.6000000000000002E-2]
[null,null,null,null,null,0.6,0.4,0.4,"JAKET GIUBBOTTI MOD. YENNE-W28VT120600-VT0427GLASSE42",8009225640031,"CHINA",42,4]
[null,null,null,null,null,0.6,0.4,0.4,"JAKET GIUBBOTTI MOD. YENNE-W28VT120600-VT0427GLASSE44",8009225640048,"CHINA",44,3]
[null,null,null,null,null,0.6,0.4,0.4,"JAKET GIUBBOTTI MOD. YENNE-W28VT120600-VT0427GLASSE46",8009225640055,"CHINA",46,3]
[null,null,null,null,null,0.6,0.4,0.4,"JAKET GIUBBOTTI MOD. YENNE-W28VT120600-VT0427GLASSE48",8009225640062,"CHINA",48,4]
[null,null,null,44,19,0.6,0.4,0.4,"JAKET GIUBBOTTI MOD. YENNE-W28VT120600-VT0581SAIL NAVY40",8009225640123,"CHINA",40,12,8.5,9.5,9.6000000000000002E-2]
[null,null,null,null,null,0.6,0.4,0.4,"JAKET GIUBBOTTI MOD. YENNE-W28VT120600-VT0581SAIL NAVY42",8009225640130,"CHINA",42,7]
[null,null,null,45,20,0.6,0.4,0.4,"JAKET GIUBBOTTI MOD. YENNE-W28VT120600-VT0581SAIL NAVY42",8009225640130,"CHINA",42,3,10,11,9.6000000000000002E-2]
[null,null,null,null,null,0.6,0.4,0.4,"JAKET GIUBBOTTI MOD. YENNE-W28VT120600-VT0581SAIL NAVY44",8009225640147,"CHINA",44,6]
[null,null,null,null,null,0.6,0.4,0.4,"JAKET GIUBBOTTI MOD. YENNE-W28VT120600-VT0581SAIL NAVY46",8009225640154,"CHINA",46,6]
[null,null,null,null,null,0.6,0.4,0.4,"JAKET GIUBBOTTI MOD. YENNE-W28VT120600-VT0581SAIL NAVY48",8009225640161,"CHINA",48,5]
[null,null,null,46,17,0.6,0.4,0.4,"JAKET GIUBBOTTI MOD. YENNE-W28VT120600-VT0999BLACK40",8009225640178,"CHINA",40,9,8,9,9.6000000000000002E-2]
[null,null,null,null,null,0.6,0.4,0.4,"JAKET GIUBBOTTI MOD. YENNE-W28VT120600-VT0999BLACK42",8009225640185,"CHINA",42,8]
[null,null,null,47,13,0.6,0.4,0.4,"JAKET GIUBBOTTI MOD. YENNE-W28VT120600-VT0999BLACK44",8009225640192,"CHINA",44,5,null,null,9.6000000000000002E-2]
[null,null,null,null,null,0.6,0.4,0.4,"JAKET GIUBBOTTI MOD. YENNE-W28VT120600-VT0999BLACK46",8009225640208,"CHINA",46,3]
[null,null,null,null,null,0.6,0.4,0.4,"JAKET GIUBBOTTI MOD. YENNE-W28VT120600-VT0999BLACK48",8009225640215,"CHINA",48,5]
[null,4,null,48,21,0.6,0.4,0.4,"JAKET GIUBBOTTI MOD. EMBRUN-M28VT120700-VT0581SAIL NAVY48",8009225640727,"CHINA",48,3,11,12,9.6000000000000002E-2]
[null,null,null,null,null,0.6,0.4,0.4,"JAKET GIUBBOTTI MOD. EMBRUN-M28VT120700-VT0581SAIL NAVY54",8009225640758,"CHINA",54,1]
[null,null,null,null,null,0.6,0.4,0.4,"JAKET GIUBBOTTI MOD. EMBRUN-M28VT120700-VT0581SAIL NAVY56",{"$f":"IF(I188=\"inserisci\",\"ND\",VLOOKUP(I188,DATI,2,FALSE))","v":8009225640765},"CHINA",56,2]
[null,null,null,null,null,0.6,0.4,0.4,"JAKET GIUBBOTTI MOD. EMBRUN-M28VT120700-VT0999BLACK50",8009225640789,"CHINA",50,9]
[null,null,null,null,null,0.6,0.4,0.4,"JAKET GIUBBOTTI MOD. EMBRUN-M28VT120700-VT0999BLACK52",8009225640796,"CHINA",52,6]
[null,null,null,49,21,0.6,0.4,0.4,"JAKET GIUBBOTTI MOD. EMBRUN-M28VT120700-VT0999BLACK54",8009225640802,"CHINA",54,11,12,13,9.6000000000000002E-2]
[null,null,null,null,null,0.6,0.4,0.4,"JAKET GIUBBOTTI MOD. EMBRUN-M28VT120700-VT0999BLACK56",8009225640819,"CHINA",56,10]
[null,null,null,50,14,0.6,0.4,0.4,"JAKET GIUBBOTTI MOD. GANNAT-M28VT120800-VT0581SAIL NAVY46",8009225640949,"CHINA",46,14,6.5,7.5,9.6000000000000002E-2]
[null,null,null,51,16,0.6,0.4,0.4,"JAKET GIUBBOTTI MOD. GANNAT-M28VT120800-VT0581SAIL NAVY48",8009225640956,"CHINA",48,16,6.5,7.5,9.6000000000000002E-2]
[null,null,null,52,12,0.6,0.4,0.4,"JAKET GIUBBOTTI MOD. GANNAT-M28VT120800-VT0581SAIL NAVY50",8009225640963,"CHINA",50,5,6,7,9.6000000000000002E-2]
[null,null,null,null,null,0.6,0.4,0.4,"JAKET GIUBBOTTI MOD. GANNAT-M28VT120800-VT0999BLACK50",8009225640994,"CHINA",50,7]
[null,null,null,53,13,0.6,0.4,0.4,"JAKET GIUBBOTTI MOD. GANNAT-M28VT120800-VT0999BLACK46",8009225640970,"CHINA",46,13,6,7,9.6000000000000002E-2]
[null,null,null,54,13,0.6,0.4,0.4,"JAKET GIUBBOTTI MOD. GANNAT-M28VT120800-VT0999BLACK48",8009225640987,"CHINA",48,13,6,7,9.6000000000000002E-2]
[null,null,null,null,null,0.6,0.4,0.4,"inserisci","ND","CHINA"]
[null,null,null,null,null,0.6,0.4,0.4,"inserisci","ND","CHINA"]
[null,null,null,null,null,0.6,0.4,0.4,"inserisci","ND","CHINA"]
[null,null,null,null,null,0.6,0.4,0.4,"inserisci","ND","CHINA"]
[null,null,null,null,null,0.6,0.4,0.4,"inserisci","ND","CHINA"]
[null,null,null,null,null,0.6,0.4,0.4,"inserisci","ND","CHINA"]
[null,null,null,null,null,0.6,0.4,0.4,"inserisci","ND","CHINA"]
[null,null,null,null,null,0.6,0.4,0.4,"inserisci","ND","CHINA"]
[null,null,null,null,null,0.6,0.4,0.4,"inserisci","ND","CHINA"]
[null,null,null,null,null,0.6,0.4,0.4,"inserisci","ND","CHINA"]
[null,null,null,null,null,0.6,0.4,0.4,"inserisci","ND","CHINA"]
[null,null,null,null,null,0.6,0.4,0.4,"inserisci","ND","CHINA"]
[null,null,null,null,null,0.6,0.4,0.4,"inserisci","ND","CHINA"]
[null,null,null,null,null,0.6,0.4,0.4,"inserisci","ND","CHINA"]
[null,null,null,null,null,0.6,0.4,0.4,"inserisci","ND","CHINA"]
[null,null,null,null,null,0.6,0.4,0.4,"inserisci","ND","CHINA"]
[null,null,null,null,null,0.6,0.4,0.4,"inserisci","ND","CHINA"]
[null,null,null,null,null,0.6,0.4,0.4,"inserisci","ND","CHINA"]
[null,null,null,null,null,0.6,0.4,0.4,"inserisci","ND","CHINA"]
[null,null,null,null,null,0.6,0.4,0.4,"inserisci","ND","CHINA"]
[null,null,null,null,null,0.6,0.4,0.4,"inserisci","ND","CHINA"]
[null,null,null,null,null,0.6,0.4,0.4,"inserisci","ND","CHINA"]
[null,null,null,null,null,0.6,0.4,0.4,"inserisci","ND","CHINA"]
[null,null,null,null,null,0.6,0.4,0.4,"inserisci","ND","CHINA"]
[null,null,null,null,null,0.6,0.4,0.4,"inserisci","ND","CHINA"]
[null,null,null,null,null,0.6,0.4,0.4,"inserisci","ND","CHINA"]
[null,null,null,null,null,0.6,0.4,0.4,"inserisci","ND","CHINA"]
[null,null,null,null,null,0.6,0.4,0.4,"inserisci","ND","CHINA"]
[null,null,null,null,null,0.6,0.4,0.4,"inserisci","ND","CHINA"]
[null,null,null,null,null,0.6,0.4,0.4,"inserisci","ND","CHINA"]
[null,null,null,null,null,0.6,0.4,0.4,"inserisci","ND","CHINA"]
[null,null,null,null,null,0.6,0.4,0.4,"inserisci","ND","CHINA"]
[null,null,null,null,null,0.6,0.4,0.4,"inserisci","ND","CHINA"]
[null,null,null,null,null,0.6,0.4,0.4,"inserisci","ND","CHINA"]
[null,null,null,null,null,0.6,0.4,0.4,"inserisci","ND","CHINA"]
[null,null,null,null,null,0.6,0.4,0.4,"inserisci","ND","CHINA"]
[null,null,null,null,null,0.6,0.4,0.4,"inserisci","ND","CHINA"]
[null,null,null,null,null,0.6,0.4,0.4,"inserisci","ND","CHINA"]
[null,null,null,null,null,0.6,0.4,0.4,"inserisci","ND","CHINA"]
[null,null,null,null,null,0.6,0.4,0.4,"inserisci","ND","CHINA"]
[null,null,null,null,null,0.6,0.4,0.4,"inserisci","ND","CHINA"]
[null,null,null,null,null,0.6,0.4,0.4,"inserisci","ND","CHINA"]
[null,null,null,null,null,0.6,0.4,0.4,"inserisci","ND","CHINA"]
[null,null,null,null,null,0.6,0.4,0.4,"inserisci","ND","CHINA"]
[null,null,null,null,null,0.6,0.4,0.4,"inserisci","ND","CHINA"]
[null,null,null,null,null,0.6,0.4,0.4,"inserisci","ND","CHINA"]
[null,null,null,null,null,0.6,0.4,0.4,"inserisci","ND","CHINA"]
[null,null,null,null,null,0.6,0.4,0.4,"inserisci","ND","CHINA"]
[null,null,null,null,null,0.6,0.4,0.4,"inserisci","ND","CHINA"]
[null,null,null,null,null,0.6,0.4,0.4,"inserisci","ND","CHINA"]
[null,null,null,null,null,0.6,0.4,0.4,"inserisci","ND","CHINA"]
[null,null,null,null,null,0.6,0.4,0.4,"inserisci","ND","CHINA"]
[null,null,null,null,null,0.6,0.4,0.4,"inserisci","ND","CHINA"]
[null,null,null,null,null,0.6,0.4,0.4,"inserisci","ND","CHINA"]
[null,null,null,null,null,0.6,0.4,0.4,"inserisci","ND","CHINA"]
[null,null,null,null,null,0.6,0.4,0.4,"inserisci",{"$f":"IF(I254=\"inserisci\",\"ND\",VLOOKUP(I254,DATI,2,FALSE))","v":"ND"},"CHINA"]
[null,null,null,null,null,0.6,0.4,0.4,"inserisci","ND","CHINA"]
[null,null,null,null,null,0.6,0.4,0.4,"inserisci","ND","CHINA"]
[null,null,null,null,null,0.6,0.4,0.4,"inserisci","ND","CHINA"]
[null,null,null,null,null,0.6,0.4,0.4,"inserisci","ND","CHINA"]
[null,null,null,null,null,0.6,0.4,0.4,null,{"$f":"IF(I259=\"\",\"ND\",VLOOKUP(I259,DATI,2,FALSE))","v":"ND"},"CHINA"]

{"sheet":"LISTA","index":2,"n_rows":180,"n_cols":2,"rows_kept":180,"cut":false,"hidden":false,"merged":[]}
["inserisci"]
["JAKET GIUBBOTTI MOD. MONNINS-W28VT120000-VT0101OFF-WHITE40",8009225641229]
["JAKET GIUBBOTTI MOD. MONNINS-W28VT120000-VT0101OFF-WHITE42",8009225641236]
["JAKET GIUBBOTTI MOD. MONNINS-W28VT120000-VT0101OFF-WHITE44",8009225641243]
["JAKET GIUBBOTTI MOD. MONNINS-W28VT120000-VT0101OFF-WHITE46",8009225641250]
["JAKET GIUBBOTTI MOD. MONNINS-W28VT120000-VT0101OFF-WHITE48",8009225641267]
["JAKET GIUBBOTTI MOD. MONNINS-W28VT120000-VT0107GARDENIA40",8009225639875]
["JAKET GIUBBOTTI MOD. MONNINS-W28VT120000-VT0107GARDENIA42",8009225639882]
["JAKET GIUBBOTTI MOD. MONNINS-W28VT120000-VT0107GARDENIA44",8009225639899]
["JAKET GIUBBOTTI MOD. MONNINS-W28VT120000-VT0107GARDENIA46",8009225639905]
["JAKET GIUBBOTTI MOD. MONNINS-W28VT120000-VT0427GLASSE40",8009225639776]
["JAKET GIUBBOTTI MOD. MONNINS-W28VT120000-VT0427GLASSE42",8009225639783]
["JAKET GIUBBOTTI MOD. MONNINS-W28VT120000-VT0427GLASSE44",8009225639790]
["JAKET GIUBBOTTI MOD. MONNINS-W28VT120000-VT0427GLASSE46",8009225639806]
["JAKET GIUBBOTTI MOD. MONNINS-W28VT120000-VT0427GLASSE48",8009225639813]
["JAKET GIUBBOTTI MOD. MONNINS-W28VT120000-VT0581SAIL NAVY40",8009225639929]
["JAKET GIUBBOTTI MOD. MONNINS-W28VT120000-VT0581SAIL NAVY42",8009225639936]
["JAKET GIUBBOTTI MOD. MONNINS-W28VT120000-VT0581SAIL NAVY44",8009225639943]
["JAKET GIUBBOTTI MOD. MONNINS-W28VT120000-VT0581SAIL NAVY46",8009225639950]
["JAKET GIUBBOTTI MOD. MONNINS-W28VT120000-VT0581SAIL NAVY48",8009225639967]
["JAKET GIUBBOTTI MOD. MONNINS-W28VT120000-VT0711CIPRIA40",8009225639820]
["JAKET GIUBBOTTI MOD. MONNINS-W28VT120000-VT0711CIPRIA42",8009225639837]
["JAKET GIUBBOTTI MOD. MONNINS-W28VT120000-VT0711CIPRIA44",8009225639844]
["JAKET GIUBBOTTI MOD. MONNINS-W28VT120000-VT0711CIPRIA46",8009225639851]
["JAKET GIUBBOTTI MOD. MONNINS-W28VT120000-VT0711CIPRIA48",8009225639868]
["JAKET GIUBBOTTI MOD. MONNINS-W28VT120000-VT0999BLACK40",8009225639974]
["JAKET GIUBBOTTI MOD. MONNINS-W28VT120000-VT0999BLACK42",8009225639981]
["JAKET GIUBBOTTI MOD. MONNINS-W28VT120000-VT0999BLACK44",8009225639998]
["JAKET GIUBBOTTI MOD. MONNINS-W28VT120000-VT0999BLACK46",8009225640000]
["JAKET GIUBBOTTI MOD. MONNINS-W28VT120000-VT0999BLACK48",8009225640017]
["JAKET GIUBBOTTI MOD. VILLETTE-W28VT120100-VT0101OFF-WHITE40",8009225641274]
["JAKET GIUBBOTTI MOD. VILLETTE-W28VT120100-VT0101OFF-WHITE42",8009225641281]
["JAKET GIUBBOTTI MOD. VILLETTE-W28VT120100-VT0101OFF-WHITE44",8009225641298]
["JAKET GIUBBOTTI MOD. VILLETTE-W28VT120100-VT0101OFF-WHITE46",8009225641304]
["JAKET GIUBBOTTI MOD. VILLETTE-W28VT120100-VT0101OFF-WHITE48",8009225641311]
["JAKET GIUBBOTTI MOD. VILLETTE-W28VT120100-VT0101OFF-WHITE50",8009225641328]
["JAKET GIUBBOTTI MOD. VILLETTE-W28VT120100-VT0107GARDENIA40",8009225640390]
["JAKET GIUBBOTTI MOD. VILLETTE-W28VT120100-VT0107GARDENIA42",8009225640406]
["JAKET GIUBBOTTI MOD. VILLETTE-W28VT120100-VT0107GARDENIA44",8009225640413]
["JAKET GIUBBOTTI MOD. VILLETTE-W28VT120100-VT0107GARDENIA46",8009225640420]
["JAKET GIUBBOTTI MOD. VILLETTE-W28VT120100-VT0107GARDENIA48",8009225640437]
["JAKET GIUBBOTTI MOD. VILLETTE-W28VT120100-VT0427GLASSE40",8009225640284]
["JAKET GIUBBOTTI MOD. VILLETTE-W28VT120100-VT0427GLASSE42",8009225640291]
["JAKET GIUBBOTTI MOD. VILLETTE-W28VT120100-VT0427GLASSE44",8009225640307]
["JAKET GIUBBOTTI MOD. VILLETTE-W28VT120100-VT0427GLASSE46",8009225640314]
["JAKET GIUBBOTTI MOD. VILLETTE-W28VT120100-VT0427GLASSE48",8009225640321]
["JAKET GIUBBOTTI MOD. VILLETTE-W28VT120100-VT0427GLASSE50",8009225639141]
["JAKET GIUBBOTTI MOD. VILLETTE-W28VT120100-VT0581SAIL NAVY40"]
["JAKET GIUBBOTTI MOD. VILLETTE-W28VT120100-VT0581SAIL NAVY42"]
["JAKET GIUBBOTTI MOD. VILLETTE-W28VT120100-VT0581SAIL NAVY44",8009225640468]
["JAKET GIUBBOTTI MOD. VILLETTE-W28VT120100-VT0581SAIL NAVY46",8009225640475]
["JAKET GIUBBOTTI MOD. VILLETTE-W28VT120100-VT0581SAIL NAVY48",8009225640482]
["JAKET GIUBBOTTI MOD. VILLETTE-W28VT120100-VT0581SAIL NAVY50",8009225640499]
["JAKET GIUBBOTTI MOD. VILLETTE-W28VT120100-VT0711CIPRIA40",8009225640345]
["JAKET GIUBBOTTI MOD. VILLETTE-W28VT120100-VT0711CIPRIA42",8009225640352]
["JAKET GIUBBOTTI MOD. VILLETTE-W28VT120100-VT0711CIPRIA44",8009225640369]
["JAKET GIUBBOTTI MOD. VILLETTE-W28VT120100-VT0711CIPRIA46",8009225640376]
["JAKET GIUBBOTTI MOD. VILLETTE-W28VT120100-VT0711CIPRIA48",8009225640383]
["JAKET GIUBBOTTI MOD. VILLETTE-W28VT120100-VT0999BLACK40",8009225640505]
["JAKET GIUBBOTTI MOD. VILLETTE-W28VT120100-VT0999BLACK42",8009225640512]
["JAKET GIUBBOTTI MOD. VILLETTE-W28VT120100-VT0999BLACK44",8009225640529]
["JAKET GIUBBOTTI MOD. VILLETTE-W28VT120100-VT0999BLACK46",8009225640536]
["JAKET GIUBBOTTI MOD. VILLETTE-W28VT120100-VT0999BLACK48",8009225640543]
["JAKET GIUBBOTTI MOD. VILLETTE-W28VT120100-VT0999BLACK50",8009225640550]
["JAKET GIUBBOTTI MOD. ANNECY-W28VT120200-VT0101OFF-WHITE40",8009225641113]
["JAKET GIUBBOTTI MOD. ANNECY-W28VT120200-VT0101OFF-WHITE42",8009225641120]
["JAKET GIUBBOTTI MOD. ANNECY-W28VT120200-VT0101OFF-WHITE44",8009225641137]
["JAKET GIUBBOTTI MOD. ANNECY-W28VT120200-VT0101OFF-WHITE46",8009225641144]
["JAKET GIUBBOTTI MOD. ANNECY-W28VT120200-VT0101OFF-WHITE48",8009225641151]
["JAKET GIUBBOTTI MOD. ANNECY-W28VT120200-VT0101OFF-WHITE50",8009225641168]
["JAKET GIUBBOTTI MOD. ANNECY-W28VT120200-VT0107GARDENIA40",8009225639202]
["JAKET GIUBBOTTI MOD. ANNECY-W28VT120200-VT0107GARDENIA42",8009225639219]
["JAKET GIUBBOTTI MOD. ANNECY-W28VT120200-VT0107GARDENIA44",8009225639226]
["JAKET GIUBBOTTI MOD. ANNECY-W28VT120200-VT0107GARDENIA46",8009225639233]
["JAKET GIUBBOTTI MOD. ANNECY-W28VT120200-VT0107GARDENIA48",8009225639240]
["JAKET GIUBBOTTI MOD. ANNECY-W28VT120200-VT0427GLASSE40",8009225639097]
["JAKET GIUBBOTTI MOD. ANNECY-W28VT120200-VT0427GLASSE42",8009225639103]
["JAKET GIUBBOTTI MOD. ANNECY-W28VT120200-VT0427GLASSE44",8009225639110]
["JAKET GIUBBOTTI MOD. ANNECY-W28VT120200-VT0427GLASSE46",8009225639127]
["JAKET GIUBBOTTI MOD. ANNECY-W28VT120200-VT0427GLASSE48",8009225639134]
["JAKET GIUBBOTTI MOD. ANNECY-W28VT120200-VT0427GLASSE50",8009225639141]
["JAKET GIUBBOTTI MOD. ANNECY-W28VT120200-VT0581SAIL NAVY40",8009225639264]
["JAKET GIUBBOTTI MOD. ANNECY-W28VT120200-VT0581SAIL NAVY42",8009225639271]
["JAKET GIUBBOTTI MOD. ANNECY-W28VT120200-VT0581SAIL NAVY44",8009225639288]
["JAKET GIUBBOTTI MOD. ANNECY-W28VT120200-VT0581SAIL NAVY46"]
["JAKET GIUBBOTTI MOD. ANNECY-W28VT120200-VT0581SAIL NAVY48",8009225639301]
["JAKET GIUBBOTTI MOD. ANNECY-W28VT120200-VT0581SAIL NAVY50",8009225639318]
["JAKET GIUBBOTTI MOD. ANNECY-W28VT120200-VT0711CIPRIA40",8009225639158]
["JAKET GIUBBOTTI MOD. ANNECY-W28VT120200-VT0711CIPRIA42",8009225639165]
["JAKET GIUBBOTTI MOD. ANNECY-W28VT120200-VT0711CIPRIA44",8009225639172]
["JAKET GIUBBOTTI MOD. ANNECY-W28VT120200-VT0711CIPRIA46",8009225639189]
["JAKET GIUBBOTTI MOD. ANNECY-W28VT120200-VT0711CIPRIA48",8009225639196]
["JAKET GIUBBOTTI MOD. ANNECY-W28VT120200-VT0999BLACK40"]
["JAKET GIUBBOTTI MOD. ANNECY-W28VT120200-VT0999BLACK42",8009225639332]
["JAKET GIUBBOTTI MOD. ANNECY-W28VT120200-VT0999BLACK44",8009225639349]
["JAKET GIUBBOTTI MOD. ANNECY-W28VT120200-VT0999BLACK46"]
["JAKET GIUBBOTTI MOD. ANNECY-W28VT120200-VT0999BLACK48",8009225639363]
["JAKET GIUBBOTTI MOD. CUSSET-W28VT120300-VT0107GARDENIA40",8009225640604]
["JAKET GIUBBOTTI MOD. CUSSET-W28VT120300-VT0107GARDENIA42",8009225640611]
["JAKET GIUBBOTTI MOD. CUSSET-W28VT120300-VT0107GARDENIA44",8009225640628]
["JAKET GIUBBOTTI MOD. CUSSET-W28VT120300-VT0107GARDENIA46",8009225640635]
["JAKET GIUBBOTTI MOD. CUSSET-W28VT120300-VT0427GLASSE40",8009225640567]
["JAKET GIUBBOTTI MOD. CUSSET-W28VT120300-VT0427GLASSE42",8009225640574]
["JAKET GIUBBOTTI MOD. CUSSET-W28VT120300-VT0427GLASSE44",8009225640581]
["JAKET GIUBBOTTI MOD. CUSSET-W28VT120300-VT0427GLASSE46",8009225640598]
["JAKET GIUBBOTTI MOD. CUSSET-W28VT120300-VT0581SAIL NAVY40",8009225640642]
["JAKET GIUBBOTTI MOD. CUSSET-W28VT120300-VT0581SAIL NAVY42",8009225640659]
["JAKET GIUBBOTTI MOD. CUSSET-W28VT120300-VT0581SAIL NAVY44",8009225640666]
["JAKET GIUBBOTTI MOD. CUSSET-W28VT120300-VT0581SAIL NAVY46",8009225640673]
["JAKET GIUBBOTTI MOD. CUSSET-W28VT120300-VT0999BLACK40",8009225640680]
["JAKET GIUBBOTTI MOD. CUSSET-W28VT120300-VT0999BLACK42",8009225640697]
["JAKET GIUBBOTTI MOD. CUSSET-W28VT120300-VT0999BLACK44",8009225640703]
["JAKET GIUBBOTTI MOD. CUSSET-W28VT120300-VT0999BLACK46",8009225640710]
["JAKET GIUBBOTTI MOD. VICHY-W28VT120500-VT0101OFF-WHITE40",8009225641175]
["JAKET GIUBBOTTI MOD. VICHY-W28VT120500-VT0101OFF-WHITE42",8009225641182]
["JAKET GIUBBOTTI MOD. VICHY-W28VT120500-VT0101OFF-WHITE44",8009225641199]
["JAKET GIUBBOTTI MOD. VICHY-W28VT120500-VT0101OFF-WHITE46",8009225641205]
["JAKET GIUBBOTTI MOD. VICHY-W28VT120500-VT0101OFF-WHITE48",8009225641212]
["JAKET GIUBBOTTI MOD. VICHY-W28VT120500-VT0107GARDENIA40",8009225639547]
["JAKET GIUBBOTTI MOD. VICHY-W28VT120500-VT0107GARDENIA42",8009225639554]
["JAKET GIUBBOTTI MOD. VICHY-W28VT120500-VT0107GARDENIA44",8009225639561]
["JAKET GIUBBOTTI MOD. VICHY-W28VT120500-VT0107GARDENIA46",8009225639578]
["JAKET GIUBBOTTI MOD. VICHY-W28VT120500-VT0107GARDENIA48",8009225639585]
["JAKET GIUBBOTTI MOD. VICHY-W28VT120500-VT0107GARDENIA50",8009225639592]
["JAKET GIUBBOTTI MOD. VICHY-W28VT120500-VT0427GLASSE40",8009225639431]
["JAKET GIUBBOTTI MOD. VICHY-W28VT120500-VT0427GLASSE42",8009225639448]
["JAKET GIUBBOTTI MOD. VICHY-W28VT120500-VT0427GLASSE44",8009225639455]
["JAKET GIUBBOTTI MOD. VICHY-W28VT120500-VT0427GLASSE46",8009225639462]
["JAKET GIUBBOTTI MOD. VICHY-W28VT120500-VT0427GLASSE48",8009225639479]
["JAKET GIUBBOTTI MOD. VICHY-W28VT120500-VT0427GLASSE50",8009225639486]
["JAKET GIUBBOTTI MOD. VICHY-W28VT120500-VT0581SAIL NAVY40",8009225639608]
["JAKET GIUBBOTTI MOD. VICHY-W28VT120500-VT0581SAIL NAVY42",8009225639615]
["JAKET GIUBBOTTI MOD. VICHY-W28VT120500-VT0581SAIL NAVY44",8009225639622]
["JAKET GIUBBOTTI MOD. VICHY-W28VT120500-VT0581SAIL NAVY46",8009225639639]
["JAKET GIUBBOTTI MOD. VICHY-W28VT120500-VT0581SAIL NAVY48",8009225639646]
["JAKET GIUBBOTTI MOD. VICHY-W28VT120500-VT0581SAIL NAVY50",8009225639653]
["JAKET GIUBBOTTI MOD. VICHY-W28VT120500-VT0711CIPRIA40",8009225639493]
["JAKET GIUBBOTTI MOD. VICHY-W28VT120500-VT0711CIPRIA42",8009225639509]
["JAKET GIUBBOTTI MOD. VICHY-W28VT120500-VT0711CIPRIA44",8009225639516]
["JAKET GIUBBOTTI MOD. VICHY-W28VT120500-VT0711CIPRIA46",8009225639523]
["JAKET GIUBBOTTI MOD. VICHY-W28VT120500-VT0711CIPRIA48",8009225639530]
["JAKET GIUBBOTTI MOD. VICHY-W28VT120500-VT0999BLACK40",8009225639660]
["JAKET GIUBBOTTI MOD. VICHY-W28VT120500-VT0999BLACK42",8009225639677]
["JAKET GIUBBOTTI MOD. VICHY-W28VT120500-VT0999BLACK44",8009225639684]
["JAKET GIUBBOTTI MOD. VICHY-W28VT120500-VT0999BLACK46",8009225639691]
["JAKET GIUBBOTTI MOD. VICHY-W28VT120500-VT0999BLACK48",8009225639707]
["JAKET GIUBBOTTI MOD. VICHY-W28VT120500-VT0999BLACK50",8009225639714]
["JAKET GIUBBOTTI MOD. YENNE-W28VT120600-VT0107GARDENIA40",8009225640079]
["JAKET GIUBBOTTI MOD. YENNE-W28VT120600-VT0107GARDENIA42",8009225640086]
["JAKET GIUBBOTTI MOD. YENNE-W28VT120600-VT0107GARDENIA44",8009225640093]
["JAKET GIUBBOTTI MOD. YENNE-W28VT120600-VT0107GARDENIA46",8009225640109]
["JAKET GIUBBOTTI MOD. YENNE-W28VT120600-VT0107GARDENIA48",8009225640116]
["JAKET GIUBBOTTI MOD. YENNE-W28VT120600-VT0427GLASSE40",8009225640024]
["JAKET GIUBBOTTI MOD. YENNE-W28VT120600-VT0427GLASSE42",8009225640031]
["JAKET GIUBBOTTI MOD. YENNE-W28VT120600-VT0427GLASSE44",8009225640048]
["JAKET GIUBBOTTI MOD. YENNE-W28VT120600-VT0427GLASSE46",8009225640055]
["JAKET GIUBBOTTI MOD. YENNE-W28VT120600-VT0427GLASSE48",8009225640062]
["JAKET GIUBBOTTI MOD. YENNE-W28VT120600-VT0581SAIL NAVY40",8009225640123]
["JAKET GIUBBOTTI MOD. YENNE-W28VT120600-VT0581SAIL NAVY42",8009225640130]
["JAKET GIUBBOTTI MOD. YENNE-W28VT120600-VT0581SAIL NAVY44",8009225640147]
["JAKET GIUBBOTTI MOD. YENNE-W28VT120600-VT0581SAIL NAVY46",8009225640154]
["JAKET GIUBBOTTI MOD. YENNE-W28VT120600-VT0581SAIL NAVY48",8009225640161]
["JAKET GIUBBOTTI MOD. YENNE-W28VT120600-VT0999BLACK40",8009225640178]
["JAKET GIUBBOTTI MOD. YENNE-W28VT120600-VT0999BLACK42",8009225640185]
["JAKET GIUBBOTTI MOD. YENNE-W28VT120600-VT0999BLACK44",8009225640192]
["JAKET GIUBBOTTI MOD. YENNE-W28VT120600-VT0999BLACK46",8009225640208]
["JAKET GIUBBOTTI MOD. YENNE-W28VT120600-VT0999BLACK48",8009225640215]
["JAKET GIUBBOTTI MOD. EMBRUN-M28VT120700-VT0581SAIL NAVY48",8009225640727]
["JAKET GIUBBOTTI MOD. EMBRUN-M28VT120700-VT0581SAIL NAVY54",8009225640758]
["JAKET GIUBBOTTI MOD. EMBRUN-M28VT120700-VT0581SAIL NAVY56",8009225640765]
["JAKET GIUBBOTTI MOD. EMBRUN-M28VT120700-VT0999BLACK50",8009225640789]
["JAKET GIUBBOTTI MOD. EMBRUN-M28VT120700-VT0999BLACK52",8009225640796]
["JAKET GIUBBOTTI MOD. EMBRUN-M28VT120700-VT0999BLACK54",8009225640802]
["JAKET GIUBBOTTI MOD. EMBRUN-M28VT120700-VT0999BLACK56",8009225640819]
["JAKET GIUBBOTTI MOD. GANNAT-M28VT120800-VT0581SAIL NAVY46",8009225640949]
["JAKET GIUBBOTTI MOD. GANNAT-M28VT120800-VT0581SAIL NAVY48",8009225640956]
["JAKET GIUBBOTTI MOD. GANNAT-M28VT120800-VT0581SAIL NAVY50",8009225640963]
["JAKET GIUBBOTTI MOD. GANNAT-M28VT120800-VT0999BLACK46",8009225640970]
["JAKET GIUBBOTTI MOD. GANNAT-M28VT120800-VT0999BLACK48",8009225640987]
["JAKET GIUBBOTTI MOD. GANNAT-M28VT120800-VT0999BLACK50",8009225640994]

{"sheet":"Foglio3","index":3,"n_rows":179,"n_cols":11,"rows_kept":179,"cut":false,"hidden":false,"merged":[]}
[]
[]
[]
[null,"Somma di Q.TY (pcs)","Etichette di colonna"]
[null,"Etichette di riga",40,42,44,46,48,50,54,56,52]
[null,"JAKET GIUBBOTTI MOD. ANNECY-W28VT120200-VT0101OFF-WHITE40",8]
[null,"JAKET GIUBBOTTI MOD. ANNECY-W28VT120200-VT0101OFF-WHITE42",null,8]
[null,"JAKET GIUBBOTTI MOD. ANNECY-W28VT120200-VT0101OFF-WHITE44",null,null,6]
[null,"JAKET GIUBBOTTI MOD. ANNECY-W28VT120200-VT0101OFF-WHITE46",null,null,null,4]
[null,"JAKET GIUBBOTTI MOD. ANNECY-W28VT120200-VT0101OFF-WHITE48",null,null,null,null,4]
[null,"JAKET GIUBBOTTI MOD. ANNECY-W28VT120200-VT0101OFF-WHITE50",null,null,null,null,null,3]
[null,"JAKET GIUBBOTTI MOD. ANNECY-W28VT120200-VT0107GARDENIA40",10]
[null,"JAKET GIUBBOTTI MOD. ANNECY-W28VT120200-VT0107GARDENIA42",null,9]
[null,"JAKET GIUBBOTTI MOD. ANNECY-W28VT120200-VT0107GARDENIA44",null,null,7]
[null,"JAKET GIUBBOTTI MOD. ANNECY-W28VT120200-VT0107GARDENIA46",null,null,null,5]
[null,"JAKET GIUBBOTTI MOD. ANNECY-W28VT120200-VT0107GARDENIA48",null,null,null,null,6]
[null,"JAKET GIUBBOTTI MOD. ANNECY-W28VT120200-VT0427GLASSE40",8]
[null,"JAKET GIUBBOTTI MOD. ANNECY-W28VT120200-VT0427GLASSE42",null,11]
[null,"JAKET GIUBBOTTI MOD. ANNECY-W28VT120200-VT0427GLASSE44",null,null,7]
[null,"JAKET GIUBBOTTI MOD. ANNECY-W28VT120200-VT0427GLASSE46",null,null,null,6]
[null,"JAKET GIUBBOTTI MOD. ANNECY-W28VT120200-VT0427GLASSE48",null,null,null,null,4]
[null,"JAKET GIUBBOTTI MOD. ANNECY-W28VT120200-VT0427GLASSE50",null,null,null,null,null,3]
[null,"JAKET GIUBBOTTI MOD. ANNECY-W28VT120200-VT0581SAIL NAVY40",5]
[null,"JAKET GIUBBOTTI MOD. ANNECY-W28VT120200-VT0581SAIL NAVY42",null,3]
[null,"JAKET GIUBBOTTI MOD. ANNECY-W28VT120200-VT0581SAIL NAVY44",null,null,1]
[null,"JAKET GIUBBOTTI MOD. ANNECY-W28VT120200-VT0581SAIL NAVY48",null,null,null,null,3]
[null,"JAKET GIUBBOTTI MOD. ANNECY-W28VT120200-VT0581SAIL NAVY50",null,null,null,null,null,3]
[null,"JAKET GIUBBOTTI MOD. ANNECY-W28VT120200-VT0711CIPRIA40",9]
[null,"JAKET GIUBBOTTI MOD. ANNECY-W28VT120200-VT0711CIPRIA42",null,7]
[null,"JAKET GIUBBOTTI MOD. ANNECY-W28VT120200-VT0711CIPRIA44",null,null,5]
[null,"JAKET GIUBBOTTI MOD. ANNECY-W28VT120200-VT0711CIPRIA46",null,null,null,5]
[null,"JAKET GIUBBOTTI MOD. ANNECY-W28VT120200-VT0711CIPRIA48",null,null,null,null,5]
[null,"JAKET GIUBBOTTI MOD. ANNECY-W28VT120200-VT0999BLACK42",null,1]
[null,"JAKET GIUBBOTTI MOD. ANNECY-W28VT120200-VT0999BLACK44",null,null,2]
[null,"JAKET GIUBBOTTI MOD. ANNECY-W28VT120200-VT0999BLACK48",null,null,null,null,2]
[null,"JAKET GIUBBOTTI MOD. CUSSET-W28VT120300-VT0107GARDENIA40",14]
[null,"JAKET GIUBBOTTI MOD. CUSSET-W28VT120300-VT0107GARDENIA42",null,14]
[null,"JAKET GIUBBOTTI MOD. CUSSET-W28VT120300-VT0107GARDENIA44",null,null,10]
[null,"JAKET GIUBBOTTI MOD. CUSSET-W28VT120300-VT0107GARDENIA46",null,null,null,3]
[null,"JAKET GIUBBOTTI MOD. CUSSET-W28VT120300-VT0427GLASSE40",9]
[null,"JAKET GIUBBOTTI MOD. CUSSET-W28VT120300-VT0427GLASSE42",null,3]
[null,"JAKET GIUBBOTTI MOD. CUSSET-W28VT120300-VT0427GLASSE44",null,null,7]
[null,"JAKET GIUBBOTTI MOD. CUSSET-W28VT120300-VT0427GLASSE46",null,null,null,4]
[null,"JAKET GIUBBOTTI MOD. CUSSET-W28VT120300-VT0581SAIL NAVY40",9]
[null,"JAKET GIUBBOTTI MOD. CUSSET-W28VT120300-VT0581SAIL NAVY42",null,10]
[null,"JAKET GIUBBOTTI MOD. CUSSET-W28VT120300-VT0581SAIL NAVY44",null,null,11]
[null,"JAKET GIUBBOTTI MOD. CUSSET-W28VT120300-VT0581SAIL NAVY46",null,null,null,8]
[null,"JAKET GIUBBOTTI MOD. CUSSET-W28VT120300-VT0999BLACK40",4]
[null,"JAKET GIUBBOTTI MOD. CUSSET-W28VT120300-VT0999BLACK42",null,6]
[null,"JAKET GIUBBOTTI MOD. CUSSET-W28VT120300-VT0999BLACK44",null,null,6]
[null,"JAKET GIUBBOTTI MOD. CUSSET-W28VT120300-VT0999BLACK46",null,null,null,5]
[null,"JAKET GIUBBOTTI MOD. MONNINS-W28VT120000-VT0101OFF-WHITE40",8]
[null,"JAKET GIUBBOTTI MOD. MONNINS-W28VT120000-VT0101OFF-WHITE42",null,11]
[null,"JAKET GIUBBOTTI MOD. MONNINS-W28VT120000-VT0101OFF-WHITE44",null,null,10]
[null,"JAKET GIUBBOTTI MOD. MONNINS-W28VT120000-VT0101OFF-WHITE46",null,null,null,5]
[null,"JAKET GIUBBOTTI MOD. MONNINS-W28VT120000-VT0101OFF-WHITE48",null,null,null,null,3]
[null,"JAKET GIUBBOTTI MOD. MONNINS-W28VT120000-VT0107GARDENIA40",9]
[null,"JAKET GIUBBOTTI MOD. MONNINS-W28VT120000-VT0107GARDENIA42",null,7]
[null,"JAKET GIUBBOTTI MOD. MONNINS-W28VT120000-VT0107GARDENIA44",null,null,10]
[null,"JAKET GIUBBOTTI MOD. MONNINS-W28VT120000-VT0107GARDENIA46",null,null,null,4]
[null,"JAKET GIUBBOTTI MOD. MONNINS-W28VT120000-VT0427GLASSE40",8]
[null,"JAKET GIUBBOTTI MOD. MONNINS-W28VT120000-VT0427GLASSE42",null,10]
[null,"JAKET GIUBBOTTI MOD. MONNINS-W28VT120000-VT0427GLASSE44",null,null,12]
[null,"JAKET GIUBBOTTI MOD. MONNINS-W28VT120000-VT0427GLASSE46",null,null,null,5]
[null,"JAKET GIUBBOTTI MOD. MONNINS-W28VT120000-VT0427GLASSE48",null,null,null,null,3]
[null,"JAKET GIUBBOTTI MOD. MONNINS-W28VT120000-VT0581SAIL NAVY40",7]
[null,"JAKET GIUBBOTTI MOD. MONNINS-W28VT120000-VT0581SAIL NAVY42",null,11]
[null,"JAKET GIUBBOTTI MOD. MONNINS-W28VT120000-VT0581SAIL NAVY44",null,null,10]
[null,"JAKET GIUBBOTTI MOD. MONNINS-W28VT120000-VT0581SAIL NAVY46",null,null,null,5]
[null,"JAKET GIUBBOTTI MOD. MONNINS-W28VT120000-VT0581SAIL NAVY48",null,null,null,null,2]
[null,"JAKET GIUBBOTTI MOD. MONNINS-W28VT120000-VT0711CIPRIA40",11]
[null,"JAKET GIUBBOTTI MOD. MONNINS-W28VT120000-VT0711CIPRIA42",null,12]
[null,"JAKET GIUBBOTTI MOD. MONNINS-W28VT120000-VT0711CIPRIA44",null,null,4]
[null,"JAKET GIUBBOTTI MOD. MONNINS-W28VT120000-VT0711CIPRIA46",null,null,null,6]
[null,"JAKET GIUBBOTTI MOD. MONNINS-W28VT120000-VT0711CIPRIA48",null,null,null,null,2]
[null,"JAKET GIUBBOTTI MOD. MONNINS-W28VT120000-VT0999BLACK40",4]
[null,"JAKET GIUBBOTTI MOD. MONNINS-W28VT120000-VT0999BLACK42",null,10]
[null,"JAKET GIUBBOTTI MOD. MONNINS-W28VT120000-VT0999BLACK44",null,null,12]
[null,"JAKET GIUBBOTTI MOD. MONNINS-W28VT120000-VT0999BLACK46",null,null,null,6]
[null,"JAKET GIUBBOTTI MOD. MONNINS-W28VT120000-VT0999BLACK48",null,null,null,null,7]
[null,"JAKET GIUBBOTTI MOD. VICHY-W28VT120500-VT0101OFF-WHITE40",11]
[null,"JAKET GIUBBOTTI MOD. VICHY-W28VT120500-VT0101OFF-WHITE42",null,9]
[null,"JAKET GIUBBOTTI MOD. VICHY-W28VT120500-VT0101OFF-WHITE44",null,null,11]
[null,"JAKET GIUBBOTTI MOD. VICHY-W28VT120500-VT0101OFF-WHITE46",null,null,null,7]
[null,"JAKET GIUBBOTTI MOD. VICHY-W28VT120500-VT0101OFF-WHITE48",null,null,null,null,2]
[null,"JAKET GIUBBOTTI MOD. VILLETTE-W28VT120100-VT0101OFF-WHITE40",8]
[null,"JAKET GIUBBOTTI MOD. VILLETTE-W28VT120100-VT0101OFF-WHITE42",null,6]
[null,"JAKET GIUBBOTTI MOD. VILLETTE-W28VT120100-VT0101OFF-WHITE44",null,null,8]
[null,"JAKET GIUBBOTTI MOD. VILLETTE-W28VT120100-VT0101OFF-WHITE46",null,null,null,6]
[null,"JAKET GIUBBOTTI MOD. VILLETTE-W28VT120100-VT0101OFF-WHITE48",null,null,null,null,2]
[null,"JAKET GIUBBOTTI MOD. VILLETTE-W28VT120100-VT0101OFF-WHITE50",null,null,null,null,null,2]
[null,"JAKET GIUBBOTTI MOD. VILLETTE-W28VT120100-VT0107GARDENIA40",7]
[null,"JAKET GIUBBOTTI MOD. VILLETTE-W28VT120100-VT0107GARDENIA42",null,8]
[null,"JAKET GIUBBOTTI MOD. VILLETTE-W28VT120100-VT0107GARDENIA44",null,null,10]
[null,"JAKET GIUBBOTTI MOD. VILLETTE-W28VT120100-VT0107GARDENIA46",null,null,null,8]
[null,"JAKET GIUBBOTTI MOD. VILLETTE-W28VT120100-VT0107GARDENIA48",null,null,null,null,5]
[null,"JAKET GIUBBOTTI MOD. VILLETTE-W28VT120100-VT0427GLASSE40",6]
[null,"JAKET GIUBBOTTI MOD. VILLETTE-W28VT120100-VT0427GLASSE42",null,9]
[null,"JAKET GIUBBOTTI MOD. VILLETTE-W28VT120100-VT0427GLASSE44",null,null,7]
[null,"JAKET GIUBBOTTI MOD. VILLETTE-W28VT120100-VT0427GLASSE46",null,null,null,3]
[null,"JAKET GIUBBOTTI MOD. VILLETTE-W28VT120100-VT0427GLASSE48",null,null,null,null,2]
[null,"JAKET GIUBBOTTI MOD. VILLETTE-W28VT120100-VT0427GLASSE50",null,null,null,null,null,4]
[null,"JAKET GIUBBOTTI MOD. VILLETTE-W28VT120100-VT0581SAIL NAVY44",null,null,3]
[null,"JAKET GIUBBOTTI MOD. VILLETTE-W28VT120100-VT0581SAIL NAVY46",null,null,null,3]
[null,"JAKET GIUBBOTTI MOD. VILLETTE-W28VT120100-VT0581SAIL NAVY48",null,null,null,null,2]
[null,"JAKET GIUBBOTTI MOD. VILLETTE-W28VT120100-VT0581SAIL NAVY50",null,null,null,null,null,5]
[null,"JAKET GIUBBOTTI MOD. VILLETTE-W28VT120100-VT0711CIPRIA40",7]
[null,"JAKET GIUBBOTTI MOD. VILLETTE-W28VT120100-VT0711CIPRIA42",null,10]
[null,"JAKET GIUBBOTTI MOD. VILLETTE-W28VT120100-VT0711CIPRIA44",null,null,9]
[null,"JAKET GIUBBOTTI MOD. VILLETTE-W28VT120100-VT0711CIPRIA46",null,null,null,7]
[null,"JAKET GIUBBOTTI MOD. VILLETTE-W28VT120100-VT0711CIPRIA48",null,null,null,null,2]
[null,"JAKET GIUBBOTTI MOD. VILLETTE-W28VT120100-VT0999BLACK40",3]
[null,"JAKET GIUBBOTTI MOD. VILLETTE-W28VT120100-VT0999BLACK42",null,2]
[null,"JAKET GIUBBOTTI MOD. VILLETTE-W28VT120100-VT0999BLACK44",null,null,3]
[null,"JAKET GIUBBOTTI MOD. VILLETTE-W28VT120100-VT0999BLACK46",null,null,null,3]
[null,"JAKET GIUBBOTTI MOD. VILLETTE-W28VT120100-VT0999BLACK48",null,null,null,null,3]
[null,"JAKET GIUBBOTTI MOD. VILLETTE-W28VT120100-VT0999BLACK50",null,null,null,null,null,2]
[null,"JAKET GIUBBOTTI MOD. VICHY-W28VT120500-VT0107GARDENIA40",8]
[null,"JAKET GIUBBOTTI MOD. VICHY-W28VT120500-VT0107GARDENIA42",null,10]
[null,"JAKET GIUBBOTTI MOD. VICHY-W28VT120500-VT0107GARDENIA44",null,null,8]
[null,"JAKET GIUBBOTTI MOD. VICHY-W28VT120500-VT0107GARDENIA46",null,null,null,3]
[null,"JAKET GIUBBOTTI MOD. VICHY-W28VT120500-VT0107GARDENIA48",null,null,null,null,1]
[null,"JAKET GIUBBOTTI MOD. VICHY-W28VT120500-VT0107GARDENIA50",null,null,null,null,null,3]
[null,"JAKET GIUBBOTTI MOD. VICHY-W28VT120500-VT0427GLASSE40",8]
[null,"JAKET GIUBBOTTI MOD. VICHY-W28VT120500-VT0427GLASSE42",null,7]
[null,"JAKET GIUBBOTTI MOD. VICHY-W28VT120500-VT0427GLASSE44",null,null,8]
[null,"JAKET GIUBBOTTI MOD. VICHY-W28VT120500-VT0427GLASSE46",null,null,null,7]
[null,"JAKET GIUBBOTTI MOD. VICHY-W28VT120500-VT0427GLASSE48",null,null,null,null,3]
[null,"JAKET GIUBBOTTI MOD. VICHY-W28VT120500-VT0427GLASSE50",null,null,null,null,null,5]
[null,"JAKET GIUBBOTTI MOD. VICHY-W28VT120500-VT0581SAIL NAVY40",7]
[null,"JAKET GIUBBOTTI MOD. VICHY-W28VT120500-VT0581SAIL NAVY42",null,7]
[null,"JAKET GIUBBOTTI MOD. VICHY-W28VT120500-VT0581SAIL NAVY44",null,null,10]
[null,"JAKET GIUBBOTTI MOD. VICHY-W28VT120500-VT0581SAIL NAVY46",null,null,null,5]
[null,"JAKET GIUBBOTTI MOD. VICHY-W28VT120500-VT0581SAIL NAVY48",null,null,null,null,3]
[null,"JAKET GIUBBOTTI MOD. VICHY-W28VT120500-VT0581SAIL NAVY50",null,null,null,null,null,3]
[null,"JAKET GIUBBOTTI MOD. VICHY-W28VT120500-VT0711CIPRIA40",10]
[null,"JAKET GIUBBOTTI MOD. VICHY-W28VT120500-VT0711CIPRIA42",null,13]
[null,"JAKET GIUBBOTTI MOD. VICHY-W28VT120500-VT0711CIPRIA44",null,null,2]
[null,"JAKET GIUBBOTTI MOD. VICHY-W28VT120500-VT0711CIPRIA46",null,null,null,7]
[null,"JAKET GIUBBOTTI MOD. VICHY-W28VT120500-VT0711CIPRIA48",null,null,null,null,3]
[null,"JAKET GIUBBOTTI MOD. VICHY-W28VT120500-VT0999BLACK40",7]
[null,"JAKET GIUBBOTTI MOD. VICHY-W28VT120500-VT0999BLACK42",null,6]
[null,"JAKET GIUBBOTTI MOD. VICHY-W28VT120500-VT0999BLACK44",null,null,9]
[null,"JAKET GIUBBOTTI MOD. VICHY-W28VT120500-VT0999BLACK46",null,null,null,4]
[null,"JAKET GIUBBOTTI MOD. VICHY-W28VT120500-VT0999BLACK48",null,null,null,null,3]
[null,"JAKET GIUBBOTTI MOD. VICHY-W28VT120500-VT0999BLACK50",null,null,null,null,null,4]
[null,"JAKET GIUBBOTTI MOD. YENNE-W28VT120600-VT0107GARDENIA40",11]
[null,"JAKET GIUBBOTTI MOD. YENNE-W28VT120600-VT0107GARDENIA42",null,8]
[null,"JAKET GIUBBOTTI MOD. YENNE-W28VT120600-VT0107GARDENIA44",null,null,8]
[null,"JAKET GIUBBOTTI MOD. YENNE-W28VT120600-VT0107GARDENIA46",null,null,null,1]
[null,"JAKET GIUBBOTTI MOD. YENNE-W28VT120600-VT0107GARDENIA48",null,null,null,null,1]
[null,"JAKET GIUBBOTTI MOD. YENNE-W28VT120600-VT0427GLASSE40",8]
[null,"JAKET GIUBBOTTI MOD. YENNE-W28VT120600-VT0427GLASSE42",null,4]
[null,"JAKET GIUBBOTTI MOD. YENNE-W28VT120600-VT0427GLASSE44",null,null,3]
[null,"JAKET GIUBBOTTI MOD. YENNE-W28VT120600-VT0427GLASSE46",null,null,null,3]
[null,"JAKET GIUBBOTTI MOD. YENNE-W28VT120600-VT0427GLASSE48",null,null,null,null,4]
[null,"JAKET GIUBBOTTI MOD. YENNE-W28VT120600-VT0581SAIL NAVY40",12]
[null,"JAKET GIUBBOTTI MOD. YENNE-W28VT120600-VT0581SAIL NAVY42",null,10]
[null,"JAKET GIUBBOTTI MOD. YENNE-W28VT120600-VT0581SAIL NAVY44",null,null,6]
[null,"JAKET GIUBBOTTI MOD. YENNE-W28VT120600-VT0581SAIL NAVY46",null,null,null,6]
[null,"JAKET GIUBBOTTI MOD. YENNE-W28VT120600-VT0581SAIL NAVY48",null,null,null,null,5]
[null,"JAKET GIUBBOTTI MOD. YENNE-W28VT120600-VT0999BLACK40",9]
[null,"JAKET GIUBBOTTI MOD. YENNE-W28VT120600-VT0999BLACK42",null,8]
[null,"JAKET GIUBBOTTI MOD. YENNE-W28VT120600-VT0999BLACK44",null,null,5]
[null,"JAKET GIUBBOTTI MOD. YENNE-W28VT120600-VT0999BLACK46",null,null,null,3]
[null,"JAKET GIUBBOTTI MOD. YENNE-W28VT120600-VT0999BLACK48",null,null,null,null,5]
[null,"JAKET GIUBBOTTI MOD. EMBRUN-M28VT120700-VT0581SAIL NAVY48",null,null,null,null,3]
[null,"JAKET GIUBBOTTI MOD. EMBRUN-M28VT120700-VT0581SAIL NAVY54",null,null,null,null,null,null,1]
[null,"JAKET GIUBBOTTI MOD. EMBRUN-M28VT120700-VT0581SAIL NAVY56",null,null,null,null,null,null,null,2]
[null,"JAKET GIUBBOTTI MOD. EMBRUN-M28VT120700-VT0999BLACK50",null,null,null,null,null,9]
[null,"JAKET GIUBBOTTI MOD. EMBRUN-M28VT120700-VT0999BLACK52",null,null,null,null,null,null,null,null,6]
[null,"JAKET GIUBBOTTI MOD. EMBRUN-M28VT120700-VT0999BLACK54",null,null,null,null,null,null,11]
[null,"JAKET GIUBBOTTI MOD. EMBRUN-M28VT120700-VT0999BLACK56",null,null,null,null,null,null,null,10]
[null,"JAKET GIUBBOTTI MOD. GANNAT-M28VT120800-VT0581SAIL NAVY46",null,null,null,14]
[null,"JAKET GIUBBOTTI MOD. GANNAT-M28VT120800-VT0581SAIL NAVY48",null,null,null,null,16]
[null,"JAKET GIUBBOTTI MOD. GANNAT-M28VT120800-VT0581SAIL NAVY50",null,null,null,null,null,5]
[null,"JAKET GIUBBOTTI MOD. GANNAT-M28VT120800-VT0999BLACK50",null,null,null,null,null,7]
[null,"JAKET GIUBBOTTI MOD. GANNAT-M28VT120800-VT0999BLACK46",null,null,null,13]
[null,"JAKET GIUBBOTTI MOD. GANNAT-M28VT120800-VT0999BLACK48",null,null,null,null,13]